Workbook

Sheet Users Guide
C6: MSU 2024 Farm Bill Analyzer USERS GUIDE
C7: Version 3.0
C8: Michigan State University Extension
C9: Based on design created by Roger Betz
C11: The MSU FARM BILL ANALYZER provides an analysis of the one important decision that are included in the Agricultural Act of 2018 (the 2018 Farm Bill). Owners and/or tenants can elect either the Agricultural Risk Coverage (ARC-CO or ARC-IC) or Price Loss Coverage (PLC) programs for each covered commodity on each of their farms.
C13: This FARM BILL ANALYZER provides farm management information on the ARC Co versus PLC decisions based on assumptions about county yields and national market prices. Given the inputted variables listed below, the MSU FARM BILL ANALYZER will calculate the consequences for the farm manager’s alternative decisions the election of ARC-CO or PLC programs. The ARC Individual (ARC-IC) program is not analyzed by the tool but is available in the Farm Bill.
C15: Disclaimer: This MSU FARM BILL ANALYZER is designed with the most recent information available about the provisions of the current Farm Bill.
C17: I. To operate the MSU FARM BILL ANALYZER, the user will need the following information:
C18: A. The Farm Service Agency (FSA) PLC program yields by FSA farm number.
C19: B. If the farm has irrigated yields, the irrigated and non-irrigated yields by acres by year need to be separated.
C20: C. Assumed county average yields (irrigated and non-irrigated) for the county in which the farm is located.
C21: D. Assumed national market year average prices (MYA) for the upcoming season.
C22: E. If considering purchase of a Supplemental Coverage Option (SCO) policy, intended planting acres, projected premiums and indemnity payments
C24: II. Operation of the tool:
C25: A. The green colored cells are where data and information can be entered. All non-green cells are protected from changes.
C26: B. Where the program says to < SELECT, highlight the green colored cells to the left by clicking on it and a "scroll button" will appear to make your selection. Click on the "scroll button" to activate the choices.
C27: C. The tool has several grey colored buttons to perform various macros contained with in the spreadsheet.
C28: D. Various formulas may appear in green cells that can be changed. It is ok and encouraged to use your own values in these cells. The various macro buttons will restore these formulas and default values.
C30: III. Steps for Data Entry:
C31: Step 1. Select from pull down menu the Farm's County. Then enter a farm name of your choice and the FSA Farm Number.
C32: Step 2. Enter the farm's PLC program base acres for all covered commodities on the farm. FSA form CCC-861
C33: Note: In the Farm Bill, “covered commodities” with base acres in Michigan include barley, oats, and some others. If you have a significant base in these crops, please contact the MSU Extension Farm Business Management team or use one of the other national analyzer programs.
C34: Step 3. Enter the farm’s PLC program yield for all covered commodities on the farm. FSA form CCC-861
C35: Step 4. Enter the farm's intended planted acres for all covered commodities on the farm. (Only needed for SCO policy considering, otherwise, may skip)
C36: Note: Intended planted acres are only needed for the Supplemental Coverage Option (SCO) policy consideration. If you do plan to consider purchase of a SCO policy, this step may be skipped.
C37: Step 5. Enter assumed county yields for the upcoming crop year
C38: Note: You can adjust the county yields by entering different yields directly or adjusting their percentage. A default for 86% of county yields is available to demonstrate scenarios of significant yield loss.
C39: Note #2: If a county does not list a yield (i.e., soybeans for Alger county), USDA does not have a recorded county yield on file. Check with your local USDA Farm Service Agency office on how ARC programs are calculated in your specific county.
C40: Step 6. Select the SCO coverage level and enter the anticipated payment using the ECO/SCO Payment Estimator from Farmdoc
C41: https://farmdoc.illinois.edu/fast-tools/eco-sco-payment-estimator
C42: Step 7. Select or Enter Projected Market Year National Average Prices. (MYA)
C43: A. Various projected prices from alternative sources can be chosen by using the “drop-down” menu.
C44: B. The user can also increase or decrease these base price projections by entering the desired percent change.
C45: C. The default values can be restored by using the “Restore Default Price Projections” button.
C47: IV. FSA Decisions:
C48: FSA Decision 1:
C49: Based on the inputted values the tool calculates the results. Look for the highest payments for the upcoming year for each crop; corn, soys and wheat. It is important to test various scenarios to see the impacts of various yields and prices. Low prices and average or high yields usually favors PLC. Low yields and low prices may favor ARC-CO or PLC depending on the crop, the county and levels of low prices and low yields.
C50: FSA Decision 2:
C51: SCO can only be used if a farm selects PLC. SCO is an insurance policy that requires a premium payment in order to receive benefits. Based on the input anticipated benefit after premium, the tool calculates whether PLC with SCO offers a higher potential payment compared to ARC-CO.
C53: V. Interpretation of Results: The results calculated by the MSU FARM BILL ANALYZER -- Results include:
C54: A. ARC-CO versus PLC: What is the consequence of electing to enroll the farm in ARC-CO or PLC? The MSU FARM BILL ANALYZER compares the farm’s expected total program payment for each covered commodity under each of these two program choices.
C55: B. Color coding is used to help quickly see which program has the highs payment given the inputted information. Green is highest and red is lowest program payment choice.
C57: VI. Conclusion:
C58: Given the many factors that could affect the two major decisions contained in the Farm Bill, users are encouraged to consider:
C59: A. Running a wide range of scenarios for prices and yields for the upcoming year. Use the best information available for the upcoming year as sign up deadline is March 15th of the crop year decision. Testing various prices and yields is highly recommended and the calculator is designed to accommodate this testing of the USDA program.
C60: B. The farm managers risk preference will effect the final decision made; not simply the result from the most likely prices and yields. What happens when prices and/or yields……………..and how much potential benefit is offered from the USDA SCO risk management policy option?
C62: MSU Farm Bill ARC-PLC Decision Making Tool © 2024 Michigan State University Board of Trustees. 4-H and other Cooperative Extension System groups and other nonprofit educational groups may print hard copies of this material for noncommercial, educational use, provided that attribution is given to Michigan State University Extension. All other rights reserved. For information, contact MSU Extension, 108 Agriculture Hall, 446 West Circle Drive, East Lansing, MI 48824.
C64: MSU is an affirmative-action, equal-opportunity employer, committed to achieving excellence through a diverse workforce and inclusive culture that encourages all people to reach their full potential. Michigan State University Extension programs and materials are open to all without regard to race, color, national origin, gender, gender identity, religion, age, height, weight, disability, political beliefs, sexual orientation, marital status, family status or veteran status. Issued in furtherance of MSU Extension work, acts of May 8 and June 30, 1914, in cooperation with the U.S. Department of Agriculture, Director, MSU Extension, East Lansing, MI 48824. This information is for educational purposes only. Reference to commercial products or trade names does not imply endorsement by MSU Extension or bias against those not mentioned.
C66: VII. Version Updates

Sheet 2024 Farm Bill Calculator
C1: MSU 2024 FARM BILL ANALYZER
C2: Version 3.0
A3: Step 1. Select Farm's County
B4: County Farm located: | C4: Shiawassee | D4: < Select County | E4: Farm Name: | F4: Smith
E5: Farm Number: | F5: 1234
A7: Step 2. Enter Acres, Yields and Irrigation Percentage (from FSA CCC-861,156) for each farm
B8: Commodity | C8: Corn | D8: Soybeans | E8: Wheat
B9: Base Acres | C9: 0 | D9: 0 | E9: 0 | F9: =SUM(C9:E9) -> 0 | G9: Total Base Acres
B10: PLC Yield | C10: 0 | D10: 0 | E10: 0
B11: Historical Irrigated Percentage | C11: 0 | D11: 0 | E11: 0
B12: Actual Planted Acres | C12: 0 | D12: 0 | E12: 0 | F12: =SUM(C12:E12) -> 0 | G12: Total Planted Acres
E14: CORN | G14: SOYBEANS | I14: WHEAT
D15: National Loan Rates | E15: 2.2 | G15: 6.2 | I15: 3.38
D16: Effective Reference Prices | E16: ='Background Calculations'!R41 -> 4.006333333 | G16: ='Background Calculations'!R42 -> 9.2565 | I16: ='Background Calculations'!R43 -> 5.5
D17: Benchmark Prices | E17: ='Background Calculations'!L54 -> 4.85 | G17: ='Background Calculations'!L55 -> 11.12 | I17: ='Background Calculations'!L56 -> 6.21
E18: Benchmark Years 2018 - 2022
A19: Step 3. Enter Anticipated COUNTY Yields
D20: =C4 -> Shiawassee | E20: County Weighted Yield (Irrigated and Dry)
D21: % Irrigated | E21: =C11 -> 0 | G21: =D11 -> 0 | I21: =E11 -> 0
E22: Anticipated COUNTY Yields
E23: ='Background Calculations'!L34*(1+F23) -> 165.7666667 | F23: 0 | G23: ='Background Calculations'!L35*(1+H23) -> 48.46333333 | H23: 0 | I23: ='Background Calculations'!L36*(1+J23) -> 77.07333333 | J23: 0
D24: Percent of Benchmark Yield | E24: =E23/'Background Calculations'!L34 -> 1 | G24: =G23/'Background Calculations'!L35 -> 1 | I24: =I23/'Background Calculations'!L36 -> 1
A26: Step 4. Enter SCO Insurance Payments & Coverage | E26: SCO Percentage & Estimated Payment/Premium
E27: CORN | G27: SOYBEANS | I27: WHEAT
C28: Supplemental Coverage Option (County Yield Based) | D28: SCO Coverage % | E28: 0 | G28: 0 | I28: 0
D29: SCO Premium | E29: 0 | G29: 0 | I29: 0
D30: SCO Payment | E30: 0 | G30: 0 | I30: 0
E31: Contact Insurance Agent or use Farmdoc Crop Insurance Decision Tool for Premium Estimates | J31: Link to Decision Tool
E32: Use Farmdoc SCO/ECO Payment Estimator to calculate SCO Payment | J32: Link to Estimator
A33: Step 5. Enter or Select Projected Prices
D34: Base Assumptions for MYA Prices to Use: | E34: CBO Baseline | H34: < Select Base Prices Source
D35: Price Change from Base assumptions: | E35: Projected Crop Prices
E36: CORN | G36: SOYBEANS | I36: WHEAT
E37: =E38*(1+F37) -> 4.5 | F37: 0 | G37: =G38*(1+H37) -> 11.25 | H37: =F37 -> 0 | I37: =I38*(1+J37) -> 6.3 | J37: =H37 -> 0
E38: =VLOOKUP(E34,'MYA Prices'!B4:E14,2,FALSE) -> 4.5 | G38: =VLOOKUP(E34,'MYA Prices'!B4:E14,3,FALSE) -> 11.25 | I38: =VLOOKUP(E34,'MYA Prices'!B4:E14,4,FALSE) -> 6.3
A41: Step 6. Evaluate the Results | E41: Program Year Choice? (No SCO)
A42: Per Base Acre | B42: Projected Program Payments | E42: CORN | G42: SOYBEANS | I42: WHEAT
B43: PLC | E43: =IF(E37>E15,IF(E37<E16,E16-E37,0)*C10,(E16-E15)*C10)*(0.85) -> 0 | G43: =IF(G37>G15,IF(G37<G16,G16-G37,0)*D10,(G16-G15)*D10)*(0.85) -> 0 | I43: =IF(I37>I15,IF(I37<I16,I16-I37,0)*E10,(I16-I15)*E10)*(0.85) -> 0
B44: ARC-CO | E44: ='Background Calculations'!R34*0.85 -> 0 | G44: ='Background Calculations'!R35*0.85 -> 0 | I44: ='Background Calculations'!R36*0.85 -> 0
E45: NA | G45: NA | I45: NA
A46: Decision Point > | B46: Best PLC or ARC-CO | E46: =MAX(E43:E44) -> 0 | G46: =MAX(G43:G44) -> 0 | I46: =MAX(I43:I44) -> 0
E48: Program Year Choice? (With SCO)
B49: Projected Program & Insurance Payments | E49: CORN | G49: SOYBEANS | I49: WHEAT
A50: Per Base + Actual Acre | B50: PLC w/ SCO | E50: =(E30-E29)+E43 -> 0 | G50: =(G30-G29)+G43 -> 0 | I50: =(I30-I29)+I43 -> 0
A51: Per Base Acre | B51: ARC-CO | E51: =E44 -> 0 | G51: =G44 -> 0 | I51: =I44 -> 0
A52: Decision Point > | B52: =SUM(E52+G52+I52) -> 0 | C52: Best PLC w/ SCO or ARC-CO | E52: =MAX(E50:E51) -> 0 | G52: =MAX(G50:G51) -> 0 | I52: =MAX(I50:I51) -> 0
A55: Total Farm | B55: Total Projected Payments | E55: CORN | G55: SOYBEANS | I55: WHEAT
B56: PLC w/ SCO | E56: =((E30-E29)*C12)+(E43*C9) -> 0 | G56: =((G30-G29)*D12)+(G43*D9) -> 0 | I56: =((I30-I29)*E12)+(I43*E9) -> 0
B57: ARC-CO | E57: =E44*C9 -> 0 | G57: =G44*D9 -> 0 | I57: =I44*E9 -> 0

Sheet Background Calculations (hidden)
C1: ='2024 Farm Bill Calculator'!C4 -> Shiawassee
D2: County Trend Yield from FSA ARC-CO | E2: 2017 | F2: 2018 | G2: 2019 | H2: 2020 | I2: 2021 | J2: 2022 | K2: 2023 | L2: 2024
B3: all | C3: Corn | D3: ='2024 Farm Bill Calculator'!$C$4&C3&B3 -> ShiawasseeCornall | E3: =IFERROR(VLOOKUP($D3,'ARC-CO Calculations'!$B$5:$Q$289,9,0),0) -> 165.59 | F3: =IFERROR(VLOOKUP($D3,'ARC-CO Calculations'!$B$5:$Q$289,10,0),0) -> 160.92 | G3: =IFERROR(VLOOKUP($D3,'ARC-CO Calculations'!$B$5:$Q$289,11,0),0) -> 159.34 | H3: =IFERROR(VLOOKUP($D3,'ARC-CO Calculations'!$B$5:$Q$289,12,0),0) -> 176.13 | I3: =IFERROR(VLOOKUP($D3,'ARC-CO Calculations'!$B$5:$Q$289,13,0),0) -> 176.62 | J3: =IFERROR(VLOOKUP($D3,'ARC-CO Calculations'!$B$5:$Q$289,14,0),0) -> 160.25 | K3: =IFERROR(VLOOKUP($D3,'ARC-CO Calculations'!$B$5:$Q$289,15,0),0) -> 168.552 | L3: =IFERROR(VLOOKUP($D3,'ARC-CO Calculations'!$B$5:$Q$289,16,0),0) -> 170.0784
B4: all | C4: soybeans | D4: ='2024 Farm Bill Calculator'!$C$4&C4&B4 -> Shiawasseesoybeansall | E4: =IFERROR(VLOOKUP($D4,'ARC-CO Calculations'!$B$5:$Q$289,9,0),0) -> 0 | F4: =IFERROR(VLOOKUP($D4,'ARC-CO Calculations'!$B$5:$Q$289,10,0),0) -> 0 | G4: =IFERROR(VLOOKUP($D4,'ARC-CO Calculations'!$B$5:$Q$289,11,0),0) -> 0 | H4: =IFERROR(VLOOKUP($D4,'ARC-CO Calculations'!$B$5:$Q$289,12,0),0) -> 0 | I4: =IFERROR(VLOOKUP($D4,'ARC-CO Calculations'!$B$5:$Q$289,13,0),0) -> 0 | J4: =IFERROR(VLOOKUP($D4,'ARC-CO Calculations'!$B$5:$Q$289,14,0),0) -> 0 | K4: =IFERROR(VLOOKUP($D4,'ARC-CO Calculations'!$B$5:$Q$289,15,0),0) -> 0 | L4: =IFERROR(VLOOKUP($D4,'ARC-CO Calculations'!$B$5:$Q$289,16,0),0) -> 0
B5: all | C5: Wheat | D5: ='2024 Farm Bill Calculator'!$C$4&C5&B5 -> ShiawasseeWheatall | E5: =IFERROR(VLOOKUP($D5,'ARC-CO Calculations'!$B$5:$Q$289,9,0),0) -> 71.31 | F5: =IFERROR(VLOOKUP($D5,'ARC-CO Calculations'!$B$5:$Q$289,10,0),0) -> 91.87 | G5: =IFERROR(VLOOKUP($D5,'ARC-CO Calculations'!$B$5:$Q$289,11,0),0) -> 64.57 | H5: =IFERROR(VLOOKUP($D5,'ARC-CO Calculations'!$B$5:$Q$289,12,0),0) -> 74.56 | I5: =IFERROR(VLOOKUP($D5,'ARC-CO Calculations'!$B$5:$Q$289,13,0),0) -> 80.32 | J5: =IFERROR(VLOOKUP($D5,'ARC-CO Calculations'!$B$5:$Q$289,14,0),0) -> 76.34 | K5: =IFERROR(VLOOKUP($D5,'ARC-CO Calculations'!$B$5:$Q$289,15,0),0) -> 77.532 | L5: =IFERROR(VLOOKUP($D5,'ARC-CO Calculations'!$B$5:$Q$289,16,0),0) -> 74.6644
B6: Irrigated | C6: Corn | D6: ='2024 Farm Bill Calculator'!$C$4&C6&B6 -> ShiawasseeCornIrrigated | E6: =IFERROR(VLOOKUP($D6,'ARC-CO Calculations'!$B$5:$Q$289,9,0),0) -> 0 | F6: =IFERROR(VLOOKUP($D6,'ARC-CO Calculations'!$B$5:$Q$289,10,0),0) -> 0 | G6: =IFERROR(VLOOKUP($D6,'ARC-CO Calculations'!$B$5:$Q$289,11,0),0) -> 0 | H6: =IFERROR(VLOOKUP($D6,'ARC-CO Calculations'!$B$5:$Q$289,12,0),0) -> 0 | I6: =IFERROR(VLOOKUP($D6,'ARC-CO Calculations'!$B$5:$Q$289,13,0),0) -> 0 | J6: =IFERROR(VLOOKUP($D6,'ARC-CO Calculations'!$B$5:$Q$289,14,0),0) -> 0 | K6: =IFERROR(VLOOKUP($D6,'ARC-CO Calculations'!$B$5:$Q$289,15,0),0) -> 0 | L6: =IFERROR(VLOOKUP($D6,'ARC-CO Calculations'!$B$5:$Q$289,16,0),0) -> 0
B7: Irrigated | C7: soybeans | D7: ='2024 Farm Bill Calculator'!$C$4&C7&B7 -> ShiawasseesoybeansIrrigated | E7: =IFERROR(VLOOKUP($D7,'ARC-CO Calculations'!$B$5:$Q$289,9,0),0) -> 40.34 | F7: =IFERROR(VLOOKUP($D7,'ARC-CO Calculations'!$B$5:$Q$289,10,0),0) -> 52.23 | G7: =IFERROR(VLOOKUP($D7,'ARC-CO Calculations'!$B$5:$Q$289,11,0),0) -> 42.66 | H7: =IFERROR(VLOOKUP($D7,'ARC-CO Calculations'!$B$5:$Q$289,12,0),0) -> 49.79 | I7: =IFERROR(VLOOKUP($D7,'ARC-CO Calculations'!$B$5:$Q$289,13,0),0) -> 59.53 | J7: =IFERROR(VLOOKUP($D7,'ARC-CO Calculations'!$B$5:$Q$289,14,0),0) -> 53.48 | K7: =IFERROR(VLOOKUP($D7,'ARC-CO Calculations'!$B$5:$Q$289,15,0),0) -> 51.978 | L7: =IFERROR(VLOOKUP($D7,'ARC-CO Calculations'!$B$5:$Q$289,16,0),0) -> 51.9276
B8: nonirrigated | C8: Corn | D8: ='2024 Farm Bill Calculator'!$C$4&C8&B8 -> ShiawasseeCornnonirrigated | E8: =IFERROR(VLOOKUP($D8,'ARC-CO Calculations'!$B$5:$Q$289,9,0),0) -> 0 | F8: =IFERROR(VLOOKUP($D8,'ARC-CO Calculations'!$B$5:$Q$289,10,0),0) -> 0 | G8: =IFERROR(VLOOKUP($D8,'ARC-CO Calculations'!$B$5:$Q$289,11,0),0) -> 0 | H8: =IFERROR(VLOOKUP($D8,'ARC-CO Calculations'!$B$5:$Q$289,12,0),0) -> 0 | I8: =IFERROR(VLOOKUP($D8,'ARC-CO Calculations'!$B$5:$Q$289,13,0),0) -> 0 | J8: =IFERROR(VLOOKUP($D8,'ARC-CO Calculations'!$B$5:$Q$289,14,0),0) -> 0 | K8: =IFERROR(VLOOKUP($D8,'ARC-CO Calculations'!$B$5:$Q$289,15,0),0) -> 0 | L8: =IFERROR(VLOOKUP($D8,'ARC-CO Calculations'!$B$5:$Q$289,16,0),0) -> 0
B9: nonirrigated | C9: soybeans | D9: ='2024 Farm Bill Calculator'!$C$4&C9&B9 -> Shiawasseesoybeansnonirrigated | E9: =IFERROR(VLOOKUP($D9,'ARC-CO Calculations'!$B$5:$Q$289,9,0),0) -> 42.48 | F9: =IFERROR(VLOOKUP($D9,'ARC-CO Calculations'!$B$5:$Q$289,10,0),0) -> 49.86 | G9: =IFERROR(VLOOKUP($D9,'ARC-CO Calculations'!$B$5:$Q$289,11,0),0) -> 36.66 | H9: =IFERROR(VLOOKUP($D9,'ARC-CO Calculations'!$B$5:$Q$289,12,0),0) -> 52.97 | I9: =IFERROR(VLOOKUP($D9,'ARC-CO Calculations'!$B$5:$Q$289,13,0),0) -> 53.21 | J9: =IFERROR(VLOOKUP($D9,'ARC-CO Calculations'!$B$5:$Q$289,14,0),0) -> 42.56 | K9: =IFERROR(VLOOKUP($D9,'ARC-CO Calculations'!$B$5:$Q$289,15,0),0) -> 47.492 | L9: =IFERROR(VLOOKUP($D9,'ARC-CO Calculations'!$B$5:$Q$289,16,0),0) -> 47.0184
B10: Irrigated | C10: Wheat | D10: ='2024 Farm Bill Calculator'!$C$4&C10&B10 -> ShiawasseeWheatIrrigated | E10: =IFERROR(VLOOKUP($D10,'ARC-CO Calculations'!$B$5:$Q$289,9,0),0) -> 0 | F10: =IFERROR(VLOOKUP($D10,'ARC-CO Calculations'!$B$5:$Q$289,10,0),0) -> 0 | G10: =IFERROR(VLOOKUP($D10,'ARC-CO Calculations'!$B$5:$Q$289,11,0),0) -> 0 | H10: =IFERROR(VLOOKUP($D10,'ARC-CO Calculations'!$B$5:$Q$289,12,0),0) -> 0 | I10: =IFERROR(VLOOKUP($D10,'ARC-CO Calculations'!$B$5:$Q$289,13,0),0) -> 0 | J10: =IFERROR(VLOOKUP($D10,'ARC-CO Calculations'!$B$5:$Q$289,14,0),0) -> 0 | K10: =IFERROR(VLOOKUP($D10,'ARC-CO Calculations'!$B$5:$Q$289,15,0),0) -> 0 | L10: =IFERROR(VLOOKUP($D10,'ARC-CO Calculations'!$B$5:$Q$289,16,0),0) -> 0
B11: nonirrigated | C11: Wheat | D11: ='2024 Farm Bill Calculator'!$C$4&C11&B11 -> ShiawasseeWheatnonirrigated | E11: =IFERROR(VLOOKUP($D11,'ARC-CO Calculations'!$B$5:$Q$289,9,0),0) -> 0 | F11: =IFERROR(VLOOKUP($D11,'ARC-CO Calculations'!$B$5:$Q$289,10,0),0) -> 0 | G11: =IFERROR(VLOOKUP($D11,'ARC-CO Calculations'!$B$5:$Q$289,11,0),0) -> 0 | H11: =IFERROR(VLOOKUP($D11,'ARC-CO Calculations'!$B$5:$Q$289,12,0),0) -> 0 | I11: =IFERROR(VLOOKUP($D11,'ARC-CO Calculations'!$B$5:$Q$289,13,0),0) -> 0 | J11: =IFERROR(VLOOKUP($D11,'ARC-CO Calculations'!$B$5:$Q$289,14,0),0) -> 0 | K11: =IFERROR(VLOOKUP($D11,'ARC-CO Calculations'!$B$5:$Q$289,15,0),0) -> 0 | L11: =IFERROR(VLOOKUP($D11,'ARC-CO Calculations'!$B$5:$Q$289,16,0),0) -> 0
C13: County Olympic Average Yield ARC-CO | E13: 2017 | F13: 2018 | G13: 2019 | H13: 2020 | I13: 2021 | J13: 2022 | K13: 2023 | L13: 2024
C14: Corn | D14: =D3 -> ShiawasseeCornall | G14: =(SUM(E3:E3)-MAX(E3:E3)-MIN(E3:E3))/3 -> -55.19666667 | H14: =(SUM(E3:F3)-MAX(E3:F3)-MIN(E3:F3))/3 -> 0 | I14: =(SUM(E3:G3)-MAX(E3:G3)-MIN(E3:G3))/3 -> 53.64 | J14: =(SUM(E3:H3)-MAX(E3:H3)-MIN(E3:H3))/3 -> 108.8366667 | K14: =(SUM(E3:I3)-MAX(E3:I3)-MIN(E3:I3))/3 -> 167.5466667 | L14: =(SUM(F3:J3)-MAX(F3:J3)-MIN(F3:J3))/3 -> 165.7666667
C15: soybeans | D15: Shiawasseesoybeansall | G15: =((SUM(E4:E4)-MAX(E4:E4)-MIN(E4:E4)))/3 -> 0 | H15: =(SUM(E4:F4)-MAX(E4:F4)-MIN(E4:F4))/3 -> 0 | I15: 0 | J15: 0 | K15: 0 | L15: =(SUM(F4:J4)-MAX(F4:J4)-MIN(F4:J4))/3 -> 0
C16: Wheat | D16: ShiawasseeWheatall | G16: =(SUM(E5:E5)-MAX(E5:E5)-MIN(E5:E5))/3 -> -23.77 | H16: 0 | I16: 23.77 | J16: 48.62333333 | K16: 75.39666667 | L16: 77.07333333
C17: Corn | D17: ShiawasseeCornIrrigated | G17: =(SUM(E6:E6)-MAX(E6:E6)-MIN(E6:E6))/3 -> 0 | H17: 0 | I17: 0 | J17: =(SUM(E6:H6)-MAX(E6:H6)-MIN(E6:H6))/3 -> 0 | K17: =(SUM(E6:I6)-MAX(E6:I6)-MIN(E6:I6))/3 -> 0 | L17: 0
C18: soybeans | D18: ShiawasseesoybeansIrrigated | G18: =(SUM(E7:E7)-MAX(E7:E7)-MIN(E7:E7))/3 -> -13.44666667 | H18: 0 | I18: 14.22 | J18: 30.81666667 | K18: 48.22666667 | L18: 51.83333333
C19: Corn | D19: =D8 -> ShiawasseeCornnonirrigated | G19: =(SUM(E8:E8)-MAX(E8:E8)-MIN(E8:E8))/3 -> 0 | H19: 0 | I19: 0 | J19: 0 | K19: 0 | L19: 0
C20: soybeans | D20: =D9 -> Shiawasseesoybeansnonirrigated | G20: =(SUM(E9:E9)-MAX(E9:E9)-MIN(E9:E9))/3 -> -14.16 | H20: 0 | I20: 14.16 | J20: 30.78 | K20: 48.43666667 | L20: =(SUM(F9:J9)-MAX(F9:J9)-MIN(F9:J9))/3 -> 48.46333333
D21: =D10 -> ShiawasseeWheatIrrigated | G21: =(SUM(E10:E10)-MAX(E10:E10)-MIN(E10:E10))/3 -> 0 | H21: =(SUM(E10:F10)-MAX(E10:F10)-MIN(E10:F10))/3 -> 0 | I21: =(SUM(E10:G10)-MAX(E10:G10)-MIN(E10:G10))/3 -> 0 | J21: =(SUM(E10:H10)-MAX(E10:H10)-MIN(E10:H10))/3 -> 0 | K21: =(SUM(E10:I10)-MAX(E10:I10)-MIN(E10:I10))/3 -> 0 | L21: =(SUM(F10:J10)-MAX(F10:J10)-MIN(F10:J10))/3 -> 0
C22: FSA County Trend Yields for Arc Co NOT USED | D22: ShiawasseeWheatnonirrigated | G22: 0 | H22: 0 | I22: 0 | J22: 0 | K22: 0 | L22: 0
B23: Problem Irrigated Yields for counties with out irrigated history back to 2013 | C23: Corn | D23: 0 | G23: 0 | H23: 0 | I23: 0 | J23: 0 | K23: 0 | L23: 0
C24: soybeans | D24: 0 | G24: -672.3333333 | H24: 0 | I24: 672.6666667 | J24: 1345.666667 | K24: 2019 | L24: 2020
C25: Wheat | D25: ShiawasseeCornall | G25: 0 | H25: 0 | I25: 18.39888889 | J25: 0 | K25: 0 | L25: 17.88
C26: Corn | D26: Shiawasseesoybeansall | G26: 0 | H26: 0 | I26: 0 | J26: 0 | K26: 0 | L26: 0
C27: soybeans | D27: ShiawasseeWheatall | G27: 0 | H27: 0 | I27: 7.923333333 | J27: 0 | K27: 0 | L27: 7.923333333
C28: Corn | D28: ShiawasseeCornIrrigated | G28: 0 | H28: 0 | I28: 0 | J28: 0 | K28: 0 | L28: 0
C29: soybeans | D29: ShiawasseesoybeansIrrigated | G29: 0 | H29: 0 | I29: 4.482222222 | J29: 0 | K29: 0 | L29: 4.74
C30: Wheat | D30: =D10 -> ShiawasseeWheatIrrigated | G30: =(SUM(E19:E19)-MAX(E19:E19)-MIN(E19:E19))/3 -> 0 | H30: =(SUM(E19:F19)-MAX(E19:F19)-MIN(E19:F19))/3 -> 0 | I30: 0 | J30: 0 | K30: =(SUM(E10:I10)-MAX(E10:I10)-MIN(E10:I10))/3 -> 0 | L30: =(SUM(F10:J10)-MAX(F10:J10)-MIN(F10:J10))/3 -> 0
C31: Wheat | D31: =D11 -> ShiawasseeWheatnonirrigated | G31: 0 | H31: 0 | I31: 0 | J31: 0 | K31: =(SUM(E11:I11)-MAX(E11:I11)-MIN(E11:I11))/3 -> 0 | L31: =(SUM(F11:J11)-MAX(F11:J11)-MIN(F11:J11))/3 -> 0
C33: County Benchmark Weighted Olympic average Yield | E33: 2017 | F33: 2018 | G33: 2019 | H33: 2020 | I33: 2021 | J33: 2022 | K33: 2023 | L33: 2024 | N33: Benchmark Revenue | O33: Benchmark Guarantee | P33: Cap Rate | Q33: Actual Revenue | R33: Projected Payment
D34: Corn | E34: =('Background Calculations'!E$14)+('Background Calculations'!E17*'2024 Farm Bill Calculator'!$C$11)+('Background Calculations'!E19*(1-'2024 Farm Bill Calculator'!$C$11)) -> 0 | F34: =('Background Calculations'!F$14)+('Background Calculations'!F17*'2024 Farm Bill Calculator'!$C$11)+('Background Calculations'!F19*(1-'2024 Farm Bill Calculator'!$C$11)) -> 0 | G34: =('Background Calculations'!G$14)+('Background Calculations'!G17*'2024 Farm Bill Calculator'!$C$11)+('Background Calculations'!G19*(1-'2024 Farm Bill Calculator'!$C$11)) -> -55.19666667 | H34: =('Background Calculations'!H$14)+('Background Calculations'!H17*'2024 Farm Bill Calculator'!$C$11)+('Background Calculations'!H19*(1-'2024 Farm Bill Calculator'!$C$11)) -> 0 | I34: =('Background Calculations'!I$14)+('Background Calculations'!I17*'2024 Farm Bill Calculator'!$C$11)+('Background Calculations'!I19*(1-'2024 Farm Bill Calculator'!$C$11)) -> 53.64 | J34: =('Background Calculations'!J$14)+('Background Calculations'!J17*'2024 Farm Bill Calculator'!$C$11)+('Background Calculations'!J19*(1-'2024 Farm Bill Calculator'!$C$11)) -> 108.8366667 | K34: =('Background Calculations'!K$14)+('Background Calculations'!K17*'2024 Farm Bill Calculator'!$C$11)+('Background Calculations'!K19*(1-'2024 Farm Bill Calculator'!$C$11)) -> 167.5466667 | L34: =('Background Calculations'!L$14)+('Background Calculations'!L17*'2024 Farm Bill Calculator'!$C$11)+('Background Calculations'!L19*(1-'2024 Farm Bill Calculator'!$C$11)) -> 165.7666667 | N34: =L34*'MYA Prices'!C11 -> 803.9683333 | O34: =N34*0.86 -> 691.4127667 | P34: =N34*0.1 -> 80.39683333 | Q34: ='2024 Farm Bill Calculator'!E37*'2024 Farm Bill Calculator'!E23 -> 745.95 | R34: =MIN(IF(Q34<O34,O34-Q34,0),P34) -> 0
D35: Soybeans | E35: =('Background Calculations'!E$15)+('Background Calculations'!E$18*'2024 Farm Bill Calculator'!$D$11)+('Background Calculations'!E$20*(1-'2024 Farm Bill Calculator'!$D$11)) -> 0 | F35: =('Background Calculations'!F$15)+('Background Calculations'!F$18*'2024 Farm Bill Calculator'!$D$11)+('Background Calculations'!F$20*(1-'2024 Farm Bill Calculator'!$D$11)) -> 0 | G35: =('Background Calculations'!G$15)+('Background Calculations'!G$18*'2024 Farm Bill Calculator'!$D$11)+('Background Calculations'!G$20*(1-'2024 Farm Bill Calculator'!$D$11)) -> -14.16 | H35: =('Background Calculations'!H$15)+('Background Calculations'!H$18*'2024 Farm Bill Calculator'!$D$11)+('Background Calculations'!H$20*(1-'2024 Farm Bill Calculator'!$D$11)) -> 0 | I35: =('Background Calculations'!I$15)+('Background Calculations'!I$18*'2024 Farm Bill Calculator'!$D$11)+('Background Calculations'!I$20*(1-'2024 Farm Bill Calculator'!$D$11)) -> 14.16 | J35: =('Background Calculations'!J$15)+('Background Calculations'!J$18*'2024 Farm Bill Calculator'!$D$11)+('Background Calculations'!J$20*(1-'2024 Farm Bill Calculator'!$D$11)) -> 30.78 | K35: =('Background Calculations'!K$15)+('Background Calculations'!K$18*'2024 Farm Bill Calculator'!$D$11)+('Background Calculations'!K$20*(1-'2024 Farm Bill Calculator'!$D$11)) -> 48.43666667 | L35: =('Background Calculations'!L$15)+('Background Calculations'!L$18*'2024 Farm Bill Calculator'!$D$11)+('Background Calculations'!L$20*(1-'2024 Farm Bill Calculator'!$D$11)) -> 48.46333333 | N35: =L35*'MYA Prices'!D11 -> 538.9122667 | O35: =N35*0.86 -> 463.4645493 | P35: =N35*0.1 -> 53.89122667 | Q35: ='2024 Farm Bill Calculator'!G37*'2024 Farm Bill Calculator'!G23 -> 545.2125 | R35: =MIN(IF(Q35<O35,O35-Q35,0),P35) -> 0
D36: Wheat | E36: =('Background Calculations'!E$16)+('Background Calculations'!E$19*'2024 Farm Bill Calculator'!$E$11)+('Background Calculations'!E$19*(1-'2024 Farm Bill Calculator'!$E$11)) -> 0 | F36: =('Background Calculations'!F$16)+('Background Calculations'!F$19*'2024 Farm Bill Calculator'!$E$11)+('Background Calculations'!F$19*(1-'2024 Farm Bill Calculator'!$E$11)) -> 0 | G36: =('Background Calculations'!G$16)+('Background Calculations'!G$30*'2024 Farm Bill Calculator'!$E$11)+('Background Calculations'!G$31*(1-'2024 Farm Bill Calculator'!$E$11)) -> -23.77 | H36: =('Background Calculations'!H$16)+('Background Calculations'!H$30*'2024 Farm Bill Calculator'!$E$11)+('Background Calculations'!H$31*(1-'2024 Farm Bill Calculator'!$E$11)) -> 0 | I36: =('Background Calculations'!I$16)+('Background Calculations'!I$30*'2024 Farm Bill Calculator'!$E$11)+('Background Calculations'!I$31*(1-'2024 Farm Bill Calculator'!$E$11)) -> 23.77 | J36: =('Background Calculations'!J$16)+('Background Calculations'!J$30*'2024 Farm Bill Calculator'!$E$11)+('Background Calculations'!J$31*(1-'2024 Farm Bill Calculator'!$E$11)) -> 48.62333333 | K36: =('Background Calculations'!K$16)+('Background Calculations'!K$30*'2024 Farm Bill Calculator'!$E$11)+('Background Calculations'!K$31*(1-'2024 Farm Bill Calculator'!$E$11)) -> 75.39666667 | L36: =('Background Calculations'!L$16)+('Background Calculations'!L$30*'2024 Farm Bill Calculator'!$E$11)+('Background Calculations'!L$31*(1-'2024 Farm Bill Calculator'!$E$11)) -> 77.07333333 | N36: =L36*'MYA Prices'!E11 -> 478.6254 | O36: 411.617844 | P36: 47.86254 | Q36: ='2024 Farm Bill Calculator'!I37*'2024 Farm Bill Calculator'!I23 -> 485.562 | R36: =MIN(IF(Q36<O36,O36-Q36,0),P36) -> 0
C39: Actual National Market Year Average Price (MYA)
E40: 2017 | F40: 2018 | G40: 2019 | H40: 2020 | I40: 2021 | J40: 2022 | K40: 2023 | L40: 2024 | N40: PLC Olympic Average | O40: 85% of Olympic Average | P40: 115% Cap | Q40: Statutory Reference Price | R40: Effective Reference Price
D41: Corn MYA Producer Price 3.70 | E41: 3.36 | F41: 3.61 | G41: 3.56 | H41: 4.53 | I41: 6 | J41: 6.36 | N41: =(SUM(F41:J41)-MIN(F41:J41)-MAX(F41:J41))/(COUNT(F41:J41)-2) -> 4.713333333 | O41: =N41*0.85 -> 4.006333333 | P41: =Q41*1.15 -> 4.255 | Q41: 3.7 | R41: =IF(O41>Q41,O41,Q41) -> 4.006333333
D42: Soy MYA Producer Price 8.40 | E42: 9.33 | F42: 8.48 | G42: 8.57 | H42: 10.8 | I42: 13.3 | J42: 14.13 | N42: =(SUM(F42:J42)-MIN(F42:J42)-MAX(F42:J42))/(COUNT(F42:J42)-2) -> 10.89 | O42: =N42*0.85 -> 9.2565 | P42: =Q42*1.15 -> 9.66 | Q42: 8.4 | R42: =IF(O42>Q42,O42,Q42) -> 9.2565
D43: Wheat MYA Producer Price 5.50 | E43: 4.72 | F43: 5.16 | G43: 4.58 | H43: 5.05 | I43: 7.63 | J43: 8.83 | N43: 5.946666667 | O43: 5.054666667 | P43: 6.325 | Q43: 5.5 | R43: 5.5
C48: Minimum Prices for Revenue Guarantees | E48: 2017 | F48: =F40 -> 2018 | G48: 2019 | H48: 2020 | I48: 2021 | J48: 2022 | K48: 2023 | L48: 2024
D49: Corn MYA Producer Price 3.70 | E49: =IF(E41<3.7,3.7,E41) -> 3.7 | F49: =IF(F41<4.01,4.01,F41) -> 4.01 | G49: =IF(G41<4.01,4.01,G41) -> 4.01 | H49: 4.53 | I49: 6 | J49: 6.36
D50: Soy MYA Producer Price 8.40 | E50: =IF(E42<8.4,8.4,E42) -> 9.33 | F50: =IF(F42<9.26,9.26,F42) -> 9.26 | G50: =IF(G42<9.26,9.26,G42) -> 9.26 | H50: 10.8 | I50: 13.3 | J50: 14.13
D51: Wheat MYA Producer Price 5.50 | E51: =IF(E43<5.5,5.5,E43) -> 5.5 | F51: 5.5 | G51: 5.5 | H51: 5.5 | I51: 7.63 | J51: 8.83
C53: Benchmark Olympic Price for: | F53: 2018 | G53: 2019 | H53: 2020 | I53: 2021 | J53: 2022 | K53: 2023 | L53: 2024
C54: Corn | F54: 2.47 | G54: 3.7 | H54: 3.7 | I54: 3.7 | J54: 3.7 | K54: =ROUND(((SUM(E49:I49)-MAX(E49:I49)-MIN(E49:I49))/3),2) -> 4.18 | L54: =ROUND(((SUM(F49:J49)-MAX(F49:J49)-MIN(F49:J49))/3),2) -> 4.85
C55: Soys | F55: 6.52 | G55: 9.63 | H55: 9.25 | I55: 8.95 | J55: 9.12 | K55: =ROUND(((SUM(E50:I50)-MAX(E50:I50)-MIN(E50:I50))/3),2) -> 9.8 | L55: =ROUND(((SUM(F50:J50)-MAX(F50:J50)-MIN(F50:J50))/3),2) -> 11.12
C56: Wheat | F56: 3.83 | G56: 5.66 | H56: 5.5 | I56: 5.5 | J56: 5.5 | K56: =ROUND(((SUM(E51:I51)-MAX(E51:I51)-MIN(E51:I51))/3),2) -> 5.5 | L56: 6.21

Sheet MYA Prices (hidden)
A1: 1 | B1: 2 | C1: 3 | D1: 4 | E1: 5 | F1: 6 | G1: 7 | H1: 8 | I1: 9 | J1: 10 | K1: 11 | L1: 12 | M1: 13 | N1: 14 | O1: 15 | P1: 16 | Q1: 17 | R1: 18 | S1: 19 | T1: 20
B2: 1 | C2: 2 | D2: 3 | E2: 4
C3: Corn 24/25 | D3: SOY 24/25 | E3: Wheat 24/25
B4: CBO Baseline | C4: 4.5 | D4: 11.25 | E4: 6.3
B5: FAPRI | C5: 4.47 | D5: 10.94 | E5: 6.33
B6: Futures '24 Harvest (as of 2/13/2024) | C6: 4.69 | D6: 11.67 | E6: 6.07
B7: Kansas State (2024/2025) | C7: 5.06 | D7: 12.33 | E7: 7.43
B8: USDA/ERS MYA Proj (2023/2024) | C8: 4.71 | D8: 12.42 | E8: 7.08
B9: USDA/ERS Ag Baseline Projections | C9: 4.5 | D9: 11.3 | E9: 6.8
B10: USDA/WASDE (2023/2024) | C10: 4.8 | D10: 12.65 | E10: 7.2
B11: ARC-CO Benchmark Price | C11: ='Background Calculations'!L54 -> 4.85 | D11: ='Background Calculations'!L55 -> 11.12 | E11: ='Background Calculations'!L56 -> 6.21
B12: Effective Reference Prices | C12: ='2024 Farm Bill Calculator'!E16 -> 4.006333333 | D12: ='2024 Farm Bill Calculator'!G16 -> 9.2565 | E12: ='2024 Farm Bill Calculator'!I16 -> 5.5
B13: Statutory Reference Prices | C13: 3.7 | D13: 8.4 | E13: 5.5
B14: Average | C14: =AVERAGEIF(C4:C10,"<>0") -> 4.675714286 | D14: =AVERAGEIF(D4:D10,"<>0") -> 11.79428571 | E14: =AVERAGEIF(E4:E10,"<>0") -> 6.744285714
D17: Updated 10/30/23
O18: UPDATES
D19: FAPRI - Food and Agricultural Policy Research Institute (http://www.fapri.missouri.edu/) | I19: http://www.fapri.missouri.edu/
D20: USDA's Agricultural Projections to 2028
D21: CBO's May 2019 Baseline | G21: https://www.cbo.gov/data/baseline-projections-selected-programs#25
D23: K State Ag Manager | G23: https://www.agmanager.info/crop-insurance/risk-management-strategies/projections-and-sources-mya-prices-arc-and-plc-commodity
D27: https://www.agmanager.info/crop-insurance/risk-management-strategies/mya-price-estimates-updated-arc-and-plc-commodity-0
D28: https://www.usda.gov/oce/commodity/wasde/
D29: https://www.fapri.missouri.edu/
D30: https://www.ers.usda.gov/data-products/season-average-price-forecasts/

Sheet ARC-CO Calculations (hidden)
C1: ARC-CO TREND ADJUSTED YIELDS, BENCHMARK YIELDS AND GUARANTEE REVENUES FOR PROGRAM YEAR 2024 | T1: PROJECTED Program Year 2024 Benchmark Yields and Revenues
T2: A | U2: B | V2: C | W2: D | X2: E | Y2: F | Z2: G | AA2: H | AB2: I | AC2: J
B3: ='2024 Farm Bill Calculator'!C4 -> Shiawassee | V3: (A * B) | W3: (86% of C) | X3: (10% of C) | AA3: (F * G) | AB3: (D - H), not less than 0 | AC3: Lesser of E or I (capped at 10% of Benchmark)
C4: ST_Cty | D4: State Name | E4: County Name | F4: Sub County | G4: Crop Name | H4: Unit | I4: ARC-CO Yield Designation | J4: 2017 trend adjusted (county yield or 80% of T) | K4: 2018 trend adjusted (county yield or 80% of T) | L4: 2019 trend adjusted (county yield or 80% of T) | M4: 2020 trend adjusted (county yield or 80% of T) | N4: 2021 trend adjusted (county yield or 80% of T) | O4: 2022 trend adjusted (county yield or 80% of T) | P4: Projected 2023 trend adjusted (county yield or 80% of T) | Q4: Projected 2024 trend adjusted (county yield or 80% of T) | R4: Trend adjustments 2023 | T4: 2024 Bench Mark (2018-22 olympic avg) | U4: 2024 Bench Mark Price (2017-21 olympic avg) | V4: 2024 Benchmark Revenue | W4: 2024 Guarantee Revenue | X4: 2024 Maximum Payment Rate | Y4: Projected 2024 Actual Yield | Z4: Projected 2024 National Price | AA4: Projected 2024 Actual Revenue | AB4: Projected 2024 Formula Payment Rate | AC4: Projected 2024 ARC-CO Payment Rate
B5: =E5&G5&I5 -> AlconaCornAll | C5: 26001 | D5: Michigan | E5: Alcona | G5: Corn | H5: Bushel | I5: All | J5: 134.49 | K5: 126.52 | L5: 94 | M5: 145.11 | N5: 190.78 | O5: 152.04 | P5: =AVERAGE(K5:O5)+R5 -> 142.98 | Q5: =AVERAGE(L5:P5)+R5 -> 146.272 | R5: 1.29 | T5: =(SUM(K5:O5)-MIN(K5:O5)-MAX(K5:O5))/(COUNT(K5:O5)-2) -> 141.2233333 | U5: ='Background Calculations'!$L$54 -> 4.85 | V5: =T5*U5 -> 684.9331667 | W5: =V5*0.86 -> 589.0425233 | X5: =V5*0.1 -> 68.49331667 | Y5: ='2024 Farm Bill Calculator'!$E$23 -> 165.7666667 | Z5: ='2024 Farm Bill Calculator'!$E$37 -> 4.5 | AA5: =Z5*Y5 -> 745.95 | AB5: =IF(W5-AA5>0,W5-AA5,0) -> 0 | AC5: =MIN(AB5,X5) -> 0
B6: AlgerCornAll | C6: 26001 | D6: Michigan | E6: Alger | G6: Corn | H6: Bushel | I6: All | J6: 58.4 | K6: 111 | L6: 58.49 | M6: 183.9 | N6: 110.84 | O6: 79.53 | P6: 108.752 | Q6: 108.3024 | T6: 100.4566667 | U6: ='Background Calculations'!$L$54 -> 4.85 | V6: 487.2148333 | W6: 419.0047567 | X6: 48.72148333 | Y6: ='2024 Farm Bill Calculator'!$E$23 -> 165.7666667 | Z6: ='2024 Farm Bill Calculator'!$E$37 -> 4.5 | AA6: =Z6*Y6 -> 745.95 | AB6: =IF(W6-AA6>0,W6-AA6,0) -> 0 | AC6: =MIN(AB6,X6) -> 0
B7: AlleganCornIrrigated | C7: 26001 | D7: Michigan | E7: Allegan | G7: Corn | H7: Bushel | I7: Irrigated | J7: 231.01 | K7: 210.21 | L7: 198.41 | M7: 212.21 | N7: 207.15 | O7: 213.29 | P7: 209.894 | Q7: 209.8308 | R7: 1.64 | T7: 209.8566667 | U7: ='Background Calculations'!$L$54 -> 4.85 | V7: 1017.804833 | W7: 875.3121567 | X7: 101.7804833 | Y7: ='2024 Farm Bill Calculator'!$E$23 -> 165.7666667 | Z7: ='2024 Farm Bill Calculator'!$E$37 -> 4.5 | AA7: 745.95 | AB7: 129.3621567 | AC7: 101.7804833
B8: AlleganCornNonirrigated | C8: 26003 | D8: Michigan | E8: Allegan | G8: Corn | H8: Bushel | I8: Nonirrigated | J8: 187.24 | K8: 160.18 | L8: 159.46 | M8: 171.39 | N8: 182.26 | O8: 184.47 | P8: 173.112 | Q8: 175.6984 | R8: 1.56 | T8: 171.2766667 | U8: ='Background Calculations'!$L$54 -> 4.85 | V8: 830.6918333 | W8: 714.3949767 | X8: 83.06918333 | Y8: ='2024 Farm Bill Calculator'!$E$23 -> 165.7666667 | Z8: ='2024 Farm Bill Calculator'!$E$37 -> 4.5 | AA8: 745.95 | AB8: 0 | AC8: 0
B9: AlpenaCornAll | C9: 26003 | D9: Michigan | E9: Alpena | G9: Corn | H9: Bushel | I9: All | J9: 150.15 | K9: 116.73 | L9: 121.46 | M9: 166.05 | N9: 188.58 | O9: 147.57 | P9: 149.498 | Q9: 156.0516 | R9: 1.42 | T9: 145.0266667 | U9: ='Background Calculations'!$L$54 -> 4.85 | V9: 703.3793333 | W9: 604.9062267 | X9: 70.33793333 | Y9: ='2024 Farm Bill Calculator'!$E$23 -> 165.7666667 | Z9: ='2024 Farm Bill Calculator'!$E$37 -> 4.5 | AA9: 745.95 | AB9: 0 | AC9: 0
B10: AntrimCornAll | C10: 26005 | D10: Michigan | E10: Antrim | G10: Corn | H10: Bushel | I10: All | J10: 140.73 | K10: 115.55 | L10: 95.44 | M10: 147.51 | N10: 142.32 | O10: 83.53 | P10: 117.78 | Q10: 118.226 | R10: 0.91 | T10: 117.77 | U10: ='Background Calculations'!$L$54 -> 4.85 | V10: 571.1845 | W10: 491.21867 | X10: 57.11845 | Y10: ='2024 Farm Bill Calculator'!$E$23 -> 165.7666667 | Z10: ='2024 Farm Bill Calculator'!$E$37 -> 4.5 | AA10: 745.95 | AB10: 0 | AC10: 0
B11: ArenacCornAll | C11: 26005 | D11: Michigan | E11: Arenac | G11: Corn | H11: Bushel | I11: All | J11: 175.68 | K11: 174.92 | L11: 142.3 | M11: 152.66 | N11: 192.54 | O11: 159.07 | P11: 165.998 | Q11: 164.2136 | R11: 1.7 | T11: 162.2166667 | U11: ='Background Calculations'!$L$54 -> 4.85 | V11: 786.7508333 | W11: 676.6057167 | X11: 78.67508333 | Y11: ='2024 Farm Bill Calculator'!$E$23 -> 165.7666667 | Z11: ='2024 Farm Bill Calculator'!$E$37 -> 4.5 | AA11: 745.95 | AB11: 0 | AC11: 0
B12: BaragaCornAll | C12: 26005 | D12: Michigan | E12: Baraga | G12: Corn | H12: Bushel | I12: All | J12: 84 | K12: 111 | L12: 84 | M12: 140.2 | N12: 110.84 | O12: 79.53 | P12: 105.114 | Q12: 103.9368 | T12: 101.9466667 | U12: ='Background Calculations'!$L$54 -> 4.85 | V12: 494.4413333 | W12: 425.2195467 | X12: 49.44413333 | Y12: ='2024 Farm Bill Calculator'!$E$23 -> 165.7666667 | Z12: ='2024 Farm Bill Calculator'!$E$37 -> 4.5 | AA12: 745.95 | AB12: 0 | AC12: 0
B13: BarryCornIrrigated | C13: 26005 | D13: Michigan | E13: Barry | G13: Corn | H13: Bushel | I13: Irrigated | J13: 205.67 | K13: 192.87 | L13: 180.11 | M13: 213.11 | N13: 221.97 | O13: 209.46 | P13: 204.794 | Q13: 207.1788 | R13: 1.29 | T13: 205.1466667 | U13: ='Background Calculations'!$L$54 -> 4.85 | V13: 994.9613333 | W13: 855.6667467 | X13: 99.49613333 | Y13: ='2024 Farm Bill Calculator'!$E$23 -> 165.7666667 | Z13: ='2024 Farm Bill Calculator'!$E$37 -> 4.5 | AA13: 745.95 | AB13: 109.7167467 | AC13: 99.49613333
B14: BarryCornNonirrigated | C14: 26005 | D14: Michigan | E14: Barry | G14: Corn | H14: Bushel | I14: Nonirrigated | J14: 174.37 | K14: 150.64 | L14: 141.24 | M14: 164.37 | N14: 179.36 | O14: 178 | P14: 164.002 | Q14: 166.6744 | R14: 1.28 | T14: 164.3366667 | U14: ='Background Calculations'!$L$54 -> 4.85 | V14: 797.0328333 | W14: 685.4482367 | X14: 79.70328333 | Y14: ='2024 Farm Bill Calculator'!$E$23 -> 165.7666667 | Z14: ='2024 Farm Bill Calculator'!$E$37 -> 4.5 | AA14: 745.95 | AB14: 0 | AC14: 0
B15: BayCornIrrigated | C15: 26007 | D15: Michigan | E15: Bay | G15: Corn | H15: Bushel | I15: Irrigated | J15: 190 | K15: 205.41 | L15: 181.66 | M15: 195.41 | N15: 209.45 | O15: 186.99 | P15: 197.644 | Q15: 196.0908 | R15: 1.86 | T15: 195.9366667 | U15: ='Background Calculations'!$L$54 -> 4.85 | V15: 950.2928333 | W15: 817.2518367 | X15: 95.02928333 | Y15: ='2024 Farm Bill Calculator'!$E$23 -> 165.7666667 | Z15: ='2024 Farm Bill Calculator'!$E$37 -> 4.5 | AA15: 745.95 | AB15: 71.30183667 | AC15: 71.30183667
B16: BayCornNonirrigated | C16: 26007 | D16: Michigan | E16: Bay | G16: Corn | H16: Bushel | I16: Nonirrigated | J16: 179.37 | K16: 193.44 | L16: 165.65 | M16: 168.13 | N16: 203.93 | O16: 181.3 | P16: 184.34 | Q16: 182.52 | R16: 1.85 | T16: 180.9566667 | U16: ='Background Calculations'!$L$54 -> 4.85 | V16: 877.6398333 | W16: 754.7702567 | X16: 87.76398333 | Y16: ='2024 Farm Bill Calculator'!$E$23 -> 165.7666667 | Z16: ='2024 Farm Bill Calculator'!$E$37 -> 4.5 | AA16: 745.95 | AB16: 8.820256667 | AC16: 8.820256667
B17: BenzieCornAll | C17: 26007 | D17: Michigan | E17: Benzie | G17: Corn | H17: Bushel | I17: All | J17: 135.26 | K17: 117.95 | L17: 97.23 | M17: 110.37 | N17: 157.9 | O17: 89.86 | P17: 114.662 | Q17: 114.0044 | T17: 108.5166667 | U17: ='Background Calculations'!$L$54 -> 4.85 | V17: 526.3058333 | W17: 452.6230167 | X17: 52.63058333 | Y17: ='2024 Farm Bill Calculator'!$E$23 -> 165.7666667 | Z17: ='2024 Farm Bill Calculator'!$E$37 -> 4.5 | AA17: 745.95 | AB17: 0 | AC17: 0
B18: BerrienCornIrrigated | C18: 26009 | D18: Michigan | E18: Berrien | G18: Corn | H18: Bushel | I18: Irrigated | J18: 242.81 | K18: 215.38 | L18: 195.33 | M18: 210.48 | N18: 219.84 | O18: 218.06 | P18: 213.908 | Q18: 213.6136 | R18: 2.09 | T18: 214.64 | U18: ='Background Calculations'!$L$54 -> 4.85 | V18: 1041.004 | W18: 895.26344 | X18: 104.1004 | Y18: ='2024 Farm Bill Calculator'!$E$23 -> 165.7666667 | Z18: ='2024 Farm Bill Calculator'!$E$37 -> 4.5 | AA18: 745.95 | AB18: 149.31344 | AC18: 104.1004
B19: BerrienCornNonirrigated | C19: 26009 | D19: Michigan | E19: Berrien | G19: Corn | H19: Bushel | I19: Nonirrigated | J19: 183.77 | K19: 172.69 | L19: 152.96 | M19: 161.75 | N19: 183.7 | O19: 177.23 | P19: 171.636 | Q19: 171.4252 | R19: 1.97 | T19: 170.5566667 | U19: ='Background Calculations'!$L$54 -> 4.85 | V19: 827.1998333 | W19: 711.3918567 | X19: 82.71998333 | Y19: ='2024 Farm Bill Calculator'!$E$23 -> 165.7666667 | Z19: ='2024 Farm Bill Calculator'!$E$37 -> 4.5 | AA19: 745.95 | AB19: 0 | AC19: 0
B20: BranchCornIrrigated | C20: 26009 | D20: Michigan | E20: Branch | G20: Corn | H20: Bushel | I20: Irrigated | J20: 204.46 | K20: 192.68 | L20: 198.91 | M20: 203.94 | N20: 181.26 | O20: 218.86 | P20: 200.89 | Q20: 202.532 | R20: 1.76 | T20: 198.51 | U20: ='Background Calculations'!$L$54 -> 4.85 | V20: 962.7735 | W20: 827.98521 | X20: 96.27735 | Y20: ='2024 Farm Bill Calculator'!$E$23 -> 165.7666667 | Z20: ='2024 Farm Bill Calculator'!$E$37 -> 4.5 | AA20: 745.95 | AB20: 82.03521 | AC20: 82.03521
B21: BranchCornNonirrigated | C21: 26011 | D21: Michigan | E21: Branch | G21: Corn | H21: Bushel | I21: Nonirrigated | J21: 166.38 | K21: 159.22 | L21: 157.83 | M21: 157.01 | N21: 165.95 | O21: 181.32 | P21: 165.936 | Q21: 167.2792 | R21: 1.67 | T21: 161 | U21: ='Background Calculations'!$L$54 -> 4.85 | V21: 780.85 | W21: 671.531 | X21: 78.085 | Y21: ='2024 Farm Bill Calculator'!$E$23 -> 165.7666667 | Z21: ='2024 Farm Bill Calculator'!$E$37 -> 4.5 | AA21: 745.95 | AB21: 0 | AC21: 0
B22: CalhounCornIrrigated | C22: 26011 | D22: Michigan | E22: Calhoun | G22: Corn | H22: Bushel | I22: Irrigated | J22: 200.6 | K22: 191 | L22: 161.75 | M22: 186.29 | N22: 194.64 | O22: 218.11 | P22: 191.878 | Q22: 192.0536 | R22: 1.52 | T22: 190.6433333 | U22: ='Background Calculations'!$L$54 -> 4.85 | V22: 924.6201667 | W22: 795.1733433 | X22: 92.46201667 | Y22: ='2024 Farm Bill Calculator'!$E$23 -> 165.7666667 | Z22: ='2024 Farm Bill Calculator'!$E$37 -> 4.5 | AA22: 745.95 | AB22: 49.22334333 | AC22: 49.22334333
B23: CalhounCornNonirrigated | C23: 26011 | D23: Michigan | E23: Calhoun | G23: Corn | H23: Bushel | I23: Nonirrigated | J23: 145.6 | K23: 149.11 | L23: 136.16 | M23: 135.42 | N23: 166.86 | O23: 176.62 | P23: 154.284 | Q23: 155.3188 | R23: 1.45 | T23: 150.71 | U23: ='Background Calculations'!$L$54 -> 4.85 | V23: 730.9435 | W23: 628.61141 | X23: 73.09435 | Y23: ='2024 Farm Bill Calculator'!$E$23 -> 165.7666667 | Z23: ='2024 Farm Bill Calculator'!$E$37 -> 4.5 | AA23: 745.95 | AB23: 0 | AC23: 0
B24: CassCornIrrigated | C24: 26013 | D24: Michigan | E24: Cass | G24: Corn | H24: Bushel | I24: Irrigated | J24: 224.01 | K24: 162.45 | L24: 192.01 | M24: 210.82 | N24: 208.36 | O24: 198.5 | P24: 196.318 | Q24: 203.0916 | R24: 1.89 | T24: 199.6233333 | U24: ='Background Calculations'!$L$54 -> 4.85 | V24: 968.1731667 | W24: 832.6289233 | X24: 96.81731667 | Y24: ='2024 Farm Bill Calculator'!$E$23 -> 165.7666667 | Z24: ='2024 Farm Bill Calculator'!$E$37 -> 4.5 | AA24: 745.95 | AB24: 86.67892333 | AC24: 86.67892333
B25: CassCornNonirrigated | C25: 26015 | D25: Michigan | E25: Cass | G25: Corn | H25: Bushel | I25: Nonirrigated | J25: 163.49 | K25: 153.7 | L25: 136.25 | M25: 139.7 | N25: 160.4 | O25: 148.77 | P25: 149.304 | Q25: 148.4248 | R25: 1.54 | T25: 147.39 | U25: ='Background Calculations'!$L$54 -> 4.85 | V25: 714.8415 | W25: 614.76369 | X25: 71.48415 | Y25: ='2024 Farm Bill Calculator'!$E$23 -> 165.7666667 | Z25: ='2024 Farm Bill Calculator'!$E$37 -> 4.5 | AA25: 745.95 | AB25: 0 | AC25: 0
B26: CharlevoixCornAll | C26: 26015 | D26: Michigan | E26: Charlevoix | G26: Corn | H26: Bushel | I26: All | J26: 122.88 | K26: 118.4 | L26: 122.02 | M26: 145.44 | N26: 152 | O26: 112.23 | P26: 131.498 | Q26: 134.1176 | R26: 1.48 | T26: 128.62 | U26: ='Background Calculations'!$L$54 -> 4.85 | V26: 623.807 | W26: 536.47402 | X26: 62.3807 | Y26: ='2024 Farm Bill Calculator'!$E$23 -> 165.7666667 | Z26: ='2024 Farm Bill Calculator'!$E$37 -> 4.5 | AA26: 745.95 | AB26: 0 | AC26: 0
B27: CheboyganCornAll | C27: 26015 | D27: Michigan | E27: Cheboygan | G27: Corn | H27: Bushel | I27: All | J27: 131 | K27: 117 | L27: 110.3 | M27: 129.9 | N27: 144.49 | O27: 105.32 | P27: 121.402 | Q27: 122.2824 | T27: 119.0666667 | U27: ='Background Calculations'!$L$54 -> 4.85 | V27: 577.4733333 | W27: 496.6270667 | X27: 57.74733333 | Y27: ='2024 Farm Bill Calculator'!$E$23 -> 165.7666667 | Z27: ='2024 Farm Bill Calculator'!$E$37 -> 4.5 | AA27: 745.95 | AB27: 0 | AC27: 0
B28: ChippewaCornAll | C28: 26015 | D28: Michigan | E28: Chippewa | G28: Corn | H28: Bushel | I28: All | J28: 84 | K28: 111 | L28: 93.6 | M28: 182.7 | N28: 110.84 | O28: 79.53 | P28: 115.534 | Q28: 116.4408 | T28: 105.1466667 | U28: ='Background Calculations'!$L$54 -> 4.85 | V28: 509.9613333 | W28: 438.5667467 | X28: 50.99613333 | Y28: ='2024 Farm Bill Calculator'!$E$23 -> 165.7666667 | Z28: ='2024 Farm Bill Calculator'!$E$37 -> 4.5 | AA28: 745.95 | AB28: 0 | AC28: 0
B29: ClareCornAll | C29: 26015 | D29: Michigan | E29: Clare | G29: Corn | H29: Bushel | I29: All | J29: 138.21 | K29: 144.89 | L29: 113.08 | M29: 164.64 | N29: 169.35 | O29: 137.86 | P29: 147.224 | Q29: 147.6908 | R29: 1.26 | T29: 149.13 | U29: ='Background Calculations'!$L$54 -> 4.85 | V29: 723.2805 | W29: 622.02123 | X29: 72.32805 | Y29: ='2024 Farm Bill Calculator'!$E$23 -> 165.7666667 | Z29: ='2024 Farm Bill Calculator'!$E$37 -> 4.5 | AA29: 745.95 | AB29: 0 | AC29: 0
B30: ClintonCornIrrigated | C30: 26017 | D30: Michigan | E30: Clinton | G30: Corn | H30: Bushel | I30: Irrigated | J30: 196.23 | K30: 205.65 | L30: 199.96 | M30: 202.54 | N30: 227.16 | O30: 213.82 | P30: 211.096 | Q30: 212.1852 | R30: 1.27 | T30: 207.3366667 | U30: ='Background Calculations'!$L$54 -> 4.85 | V30: 1005.582833 | W30: 864.8012367 | X30: 100.5582833 | Y30: ='2024 Farm Bill Calculator'!$E$23 -> 165.7666667 | Z30: ='2024 Farm Bill Calculator'!$E$37 -> 4.5 | AA30: 745.95 | AB30: 118.8512367 | AC30: 100.5582833
B31: ClintonCornNonirrigated | C31: 26017 | D31: Michigan | E31: Clinton | G31: Corn | H31: Bushel | I31: Nonirrigated | J31: 158.06 | K31: 149.46 | L31: 153.87 | M31: 158.28 | N31: 188.61 | O31: 176.26 | P31: 166.556 | Q31: 169.9752 | R31: 1.26 | T31: 162.8033333 | U31: ='Background Calculations'!$L$54 -> 4.85 | V31: 789.5961667 | W31: 679.0527033 | X31: 78.95961667 | Y31: ='2024 Farm Bill Calculator'!$E$23 -> 165.7666667 | Z31: ='2024 Farm Bill Calculator'!$E$37 -> 4.5 | AA31: 745.95 | AB31: 0 | AC31: 0
B32: DeltaCornAll | C32: 26017 | D32: Michigan | E32: Delta | G32: Corn | H32: Bushel | I32: All | J32: 61.98 | K32: 159.56 | L32: 61.56 | M32: 189.43 | N32: 97.49 | O32: 42.73 | P32: 111.684 | Q32: 102.1088 | R32: 1.53 | T32: 106.2033333 | U32: ='Background Calculations'!$L$54 -> 4.85 | V32: 515.0861667 | W32: 442.9741033 | X32: 51.50861667 | Y32: ='2024 Farm Bill Calculator'!$E$23 -> 165.7666667 | Z32: ='2024 Farm Bill Calculator'!$E$37 -> 4.5 | AA32: 745.95 | AB32: 0 | AC32: 0
B33: DickinsonCornAll | C33: 26017 | D33: Michigan | E33: Dickinson | G33: Corn | H33: Bushel | I33: All | J33: 80.84 | K33: 157.62 | L33: 61.6 | M33: 180.08 | N33: 104.96 | O33: 116.88 | P33: 124.228 | Q33: 117.5496 | T33: 126.4866667 | U33: ='Background Calculations'!$L$54 -> 4.85 | V33: 613.4603333 | W33: 527.5758867 | X33: 61.34603333 | Y33: ='2024 Farm Bill Calculator'!$E$23 -> 165.7666667 | Z33: ='2024 Farm Bill Calculator'!$E$37 -> 4.5 | AA33: 745.95 | AB33: 0 | AC33: 0
B34: EatonCornAll | C34: 26017 | D34: Michigan | E34: Eaton | G34: Corn | H34: Bushel | I34: All | J34: 186.83 | K34: 163.37 | L34: 142.08 | M34: 161.4 | N34: 176.76 | O34: 186.98 | P34: 168.138 | Q34: 169.0916 | R34: 2.02 | T34: 167.1766667 | U34: ='Background Calculations'!$L$54 -> 4.85 | V34: 810.8068333 | W34: 697.2938767 | X34: 81.08068333 | Y34: ='2024 Farm Bill Calculator'!$E$23 -> 165.7666667 | Z34: ='2024 Farm Bill Calculator'!$E$37 -> 4.5 | AA34: 745.95 | AB34: 0 | AC34: 0
B35: EmmetCornAll | C35: 26019 | D35: Michigan | E35: Emmet | G35: Corn | H35: Bushel | I35: All | J35: 125.34 | K35: 115.45 | L35: 84.36 | M35: 131.57 | N35: 137.61 | O35: 106.3 | P35: 115.948 | Q35: 116.0476 | R35: 0.89 | T35: 117.7733333 | U35: ='Background Calculations'!$L$54 -> 4.85 | V35: 571.2006667 | W35: 491.2325733 | X35: 57.12006667 | Y35: ='2024 Farm Bill Calculator'!$E$23 -> 165.7666667 | Z35: ='2024 Farm Bill Calculator'!$E$37 -> 4.5 | AA35: 745.95 | AB35: 0 | AC35: 0
B36: GeneseeCornAll | C36: 26019 | D36: Michigan | E36: Genesee | G36: Corn | H36: Bushel | I36: All | J36: 178.39 | K36: 170.26 | L36: 145.29 | M36: 155.17 | N36: 175.2 | O36: 144.66 | P36: 159.876 | Q36: 157.7992 | R36: 1.76 | T36: 156.9066667 | U36: ='Background Calculations'!$L$54 -> 4.85 | V36: 760.9973333 | W36: 654.4577067 | X36: 76.09973333 | Y36: ='2024 Farm Bill Calculator'!$E$23 -> 165.7666667 | Z36: ='2024 Farm Bill Calculator'!$E$37 -> 4.5 | AA36: 745.95 | AB36: 0 | AC36: 0
B37: GladwinCornAll | C37: 26021 | D37: Michigan | E37: Gladwin | G37: Corn | H37: Bushel | I37: All | J37: 154.34 | K37: 175.27 | L37: 139.17 | M37: 156.94 | N37: 186.22 | O37: 135.26 | P37: 160.552 | Q37: 157.6084 | R37: 1.98 | T37: 157.1266667 | U37: ='Background Calculations'!$L$54 -> 4.85 | V37: 762.0643333 | W37: 655.3753267 | X37: 76.20643333 | Y37: ='2024 Farm Bill Calculator'!$E$23 -> 165.7666667 | Z37: ='2024 Farm Bill Calculator'!$E$37 -> 4.5 | AA37: 745.95 | AB37: 0 | AC37: 0
B38: Grand TraverseCornAll | C38: 26021 | D38: Michigan | E38: Grand Traverse | G38: Corn | H38: Bushel | I38: All | J38: 133.76 | K38: 89.15 | L38: 105.98 | M38: 106.96 | N38: 153.17 | O38: 140.8 | P38: 119.212 | Q38: 125.2244 | T38: 117.9133333 | U38: ='Background Calculations'!$L$54 -> 4.85 | V38: 571.8796667 | W38: 491.8165133 | X38: 57.18796667 | Y38: ='2024 Farm Bill Calculator'!$E$23 -> 165.7666667 | Z38: ='2024 Farm Bill Calculator'!$E$37 -> 4.5 | AA38: 745.95 | AB38: 0 | AC38: 0
B39: GratiotCornIrrigated | C39: 26021 | D39: Michigan | E39: Gratiot | G39: Corn | H39: Bushel | I39: Irrigated | J39: 186.68 | K39: 196.85 | L39: 185.2 | M39: 201.59 | N39: 199.22 | O39: 203.12 | P39: 198.656 | Q39: 199.0172 | R39: 1.46 | T39: 199.22 | U39: ='Background Calculations'!$L$54 -> 4.85 | V39: 966.217 | W39: 830.94662 | X39: 96.6217 | Y39: ='2024 Farm Bill Calculator'!$E$23 -> 165.7666667 | Z39: ='2024 Farm Bill Calculator'!$E$37 -> 4.5 | AA39: 745.95 | AB39: 84.99662 | AC39: 84.99662
B40: GratiotCornNonirrigated | C40: 26021 | D40: Michigan | E40: Gratiot | G40: Corn | H40: Bushel | I40: Nonirrigated | J40: 164.63 | K40: 174.91 | L40: 152.5 | M40: 170.51 | N40: 180.49 | O40: 177.79 | P40: 172.69 | Q40: 172.246 | R40: 1.45 | T40: 174.4033333 | U40: ='Background Calculations'!$L$54 -> 4.85 | V40: 845.8561667 | W40: 727.4363033 | X40: 84.58561667 | Y40: ='2024 Farm Bill Calculator'!$E$23 -> 165.7666667 | Z40: ='2024 Farm Bill Calculator'!$E$37 -> 4.5 | AA40: 745.95 | AB40: 0 | AC40: 0
B41: HillsdaleCornIrrigated | C41: 26021 | D41: Michigan | E41: Hillsdale | G41: Corn | H41: Bushel | I41: Irrigated | J41: 203.81 | K41: 187.67 | L41: 198.37 | M41: 213.55 | N41: 191.8 | O41: 212.44 | P41: 202.456 | Q41: 205.4132 | R41: 1.69 | T41: 200.87 | U41: ='Background Calculations'!$L$54 -> 4.85 | V41: 974.2195 | W41: 837.82877 | X41: 97.42195 | Y41: ='2024 Farm Bill Calculator'!$E$23 -> 165.7666667 | Z41: ='2024 Farm Bill Calculator'!$E$37 -> 4.5 | AA41: 745.95 | AB41: 91.87877 | AC41: 91.87877
B42: HillsdaleCornNonirrigated | C42: 26023 | D42: Michigan | E42: Hillsdale | G42: Corn | H42: Bushel | I42: Nonirrigated | J42: 172.04 | K42: 164.3 | L42: 163.39 | M42: 154.85 | N42: 181.33 | O42: 181.65 | P42: 170.754 | Q42: 172.0448 | R42: 1.65 | T42: 169.6733333 | U42: ='Background Calculations'!$L$54 -> 4.85 | V42: 822.9156667 | W42: 707.7074733 | X42: 82.29156667 | Y42: ='2024 Farm Bill Calculator'!$E$23 -> 165.7666667 | Z42: ='2024 Farm Bill Calculator'!$E$37 -> 4.5 | AA42: 745.95 | AB42: 0 | AC42: 0
B43: HoughtonCornAll | C43: 26023 | D43: Michigan | E43: Houghton | G43: Corn | H43: Bushel | I43: All | J43: 58.4 | K43: 111 | L43: 58.49 | M43: 138.6 | N43: 110.84 | O43: 79.53 | P43: 99.692 | Q43: 97.4304 | T43: 100.4566667 | U43: ='Background Calculations'!$L$54 -> 4.85 | V43: 487.2148333 | W43: 419.0047567 | X43: 48.72148333 | Y43: ='2024 Farm Bill Calculator'!$E$23 -> 165.7666667 | Z43: ='2024 Farm Bill Calculator'!$E$37 -> 4.5 | AA43: 745.95 | AB43: 0 | AC43: 0
B44: HuronCornIrrigated | C44: 26023 | D44: Michigan | E44: Huron | G44: Corn | H44: Bushel | I44: Irrigated | J44: 208.45 | K44: 207.21 | L44: 206.79 | M44: 217.66 | N44: 216.67 | O44: 198.91 | P44: 211.078 | Q44: 211.8516 | R44: 1.63 | T44: 210.2233333 | U44: ='Background Calculations'!$L$54 -> 4.85 | V44: 1019.583167 | W44: 876.8415233 | X44: 101.9583167 | Y44: ='2024 Farm Bill Calculator'!$E$23 -> 165.7666667 | Z44: ='2024 Farm Bill Calculator'!$E$37 -> 4.5 | AA44: 745.95 | AB44: 130.8915233 | AC44: 101.9583167
B45: HuronCornNonirrigated | C45: 26023 | D45: Michigan | E45: Huron | G45: Corn | H45: Bushel | I45: Nonirrigated | J45: 205.28 | K45: 178.93 | L45: 179.42 | M45: 199.06 | N45: 221.56 | O45: 173.35 | P45: 192.094 | Q45: 194.7268 | R45: 1.63 | T45: 185.8033333 | U45: ='Background Calculations'!$L$54 -> 4.85 | V45: 901.1461667 | W45: 774.9857033 | X45: 90.11461667 | Y45: ='2024 Farm Bill Calculator'!$E$23 -> 165.7666667 | Z45: ='2024 Farm Bill Calculator'!$E$37 -> 4.5 | AA45: 745.95 | AB45: 29.03570333 | AC45: 29.03570333
B46: InghamCornAll | C46: 26023 | D46: Michigan | E46: Ingham | G46: Corn | H46: Bushel | I46: All | J46: 172.86 | K46: 159.79 | L46: 160.87 | M46: 162.88 | N46: 196.33 | O46: 169.88 | P46: 171.89 | Q46: 174.31 | R46: 1.94 | T46: 164.5433333 | U46: ='Background Calculations'!$L$54 -> 4.85 | V46: 798.0351667 | W46: 686.3102433 | X46: 79.80351667 | Y46: ='2024 Farm Bill Calculator'!$E$23 -> 165.7666667 | Z46: ='2024 Farm Bill Calculator'!$E$37 -> 4.5 | AA46: 745.95 | AB46: 0 | AC46: 0
B47: IoniaCornIrrigated | C47: 26025 | D47: Michigan | E47: Ionia | G47: Corn | H47: Bushel | I47: Irrigated | J47: 209.64 | K47: 218.7 | L47: 195.29 | M47: 219.61 | N47: 237.82 | O47: 224.21 | P47: 220.746 | Q47: 221.1552 | R47: 1.62 | T47: 220.84 | U47: ='Background Calculations'!$L$54 -> 4.85 | V47: 1071.074 | W47: 921.12364 | X47: 107.1074 | Y47: ='2024 Farm Bill Calculator'!$E$23 -> 165.7666667 | Z47: ='2024 Farm Bill Calculator'!$E$37 -> 4.5 | AA47: 745.95 | AB47: 175.17364 | AC47: 107.1074
B48: IoniaCornNonirrigated | C48: 26025 | D48: Michigan | E48: Ionia | G48: Corn | H48: Bushel | I48: Nonirrigated | J48: 175.61 | K48: 172.12 | L48: 162.9 | M48: 162.35 | N48: 195.29 | O48: 197.43 | P48: 179.628 | Q48: 181.1296 | R48: 1.61 | T48: 176.77 | U48: ='Background Calculations'!$L$54 -> 4.85 | V48: 857.3345 | W48: 737.30767 | X48: 85.73345 | Y48: ='2024 Farm Bill Calculator'!$E$23 -> 165.7666667 | Z48: ='2024 Farm Bill Calculator'!$E$37 -> 4.5 | AA48: 745.95 | AB48: 0 | AC48: 0
B49: IoscoCornAll | C49: 26025 | D49: Michigan | E49: Iosco | G49: Corn | H49: Bushel | I49: All | J49: 173.96 | K49: 163.73 | L49: 142.27 | M49: 153.25 | N49: 166.78 | O49: 152.17 | P49: 156.94 | Q49: 155.582 | R49: 1.3 | T49: 156.3833333 | U49: ='Background Calculations'!$L$54 -> 4.85 | V49: 758.4591667 | W49: 652.2748833 | X49: 75.84591667 | Y49: ='2024 Farm Bill Calculator'!$E$23 -> 165.7666667 | Z49: ='2024 Farm Bill Calculator'!$E$37 -> 4.5 | AA49: 745.95 | AB49: 0 | AC49: 0
B50: IronCornAll | C50: 26025 | D50: Michigan | E50: Iron | G50: Corn | H50: Bushel | I50: All | J50: 84 | K50: 111 | L50: 84 | M50: 154.83 | N50: 110.84 | O50: 79.53 | P50: 108.04 | Q50: 107.448 | T50: 101.9466667 | U50: ='Background Calculations'!$L$54 -> 4.85 | V50: 494.4413333 | W50: 425.2195467 | X50: 49.44413333 | Y50: ='2024 Farm Bill Calculator'!$E$23 -> 165.7666667 | Z50: ='2024 Farm Bill Calculator'!$E$37 -> 4.5 | AA50: 745.95 | AB50: 0 | AC50: 0
B51: IsabellaCornIrrigated | C51: 26025 | D51: Michigan | E51: Isabella | G51: Corn | H51: Bushel | I51: Irrigated | J51: 183.39 | K51: 188.31 | L51: 173.49 | M51: 176.62 | N51: 189.68 | O51: 137.66 | P51: 175.092 | Q51: 172.4484 | R51: 1.94 | T51: 179.4733333 | U51: ='Background Calculations'!$L$54 -> 4.85 | V51: 870.4456667 | W51: 748.5832733 | X51: 87.04456667 | Y51: ='2024 Farm Bill Calculator'!$E$23 -> 165.7666667 | Z51: ='2024 Farm Bill Calculator'!$E$37 -> 4.5 | AA51: 745.95 | AB51: 2.633273333 | AC51: 2.633273333
B52: IsabellaCornNonirrigated | C52: 26027 | D52: Michigan | E52: Isabella | G52: Corn | H52: Bushel | I52: Nonirrigated | J52: 165.05 | K52: 154.58 | L52: 145.91 | M52: 134.26 | N52: 186.05 | O52: 169.08 | P52: 159.896 | Q52: 160.9592 | R52: 1.92 | T52: 156.5233333 | U52: ='Background Calculations'!$L$54 -> 4.85 | V52: 759.1381667 | W52: 652.8588233 | X52: 75.91381667 | Y52: ='2024 Farm Bill Calculator'!$E$23 -> 165.7666667 | Z52: ='2024 Farm Bill Calculator'!$E$37 -> 4.5 | AA52: 745.95 | AB52: 0 | AC52: 0
B53: JacksonCornIrrigated | C53: 26027 | D53: Michigan | E53: Jackson | G53: Corn | H53: Bushel | I53: Irrigated | J53: 231.79 | K53: 210.8 | L53: 206 | M53: 217.79 | N53: 193.05 | O53: 191.26 | P53: 205.3 | Q53: 204.2 | R53: 1.52 | T53: 203.2833333 | U53: ='Background Calculations'!$L$54 -> 4.85 | V53: 985.9241667 | W53: 847.8947833 | X53: 98.59241667 | Y53: ='2024 Farm Bill Calculator'!$E$23 -> 165.7666667 | Z53: ='2024 Farm Bill Calculator'!$E$37 -> 4.5 | AA53: 745.95 | AB53: 101.9447833 | AC53: 98.59241667
B54: JacksonCornNonirrigated | C54: 26027 | D54: Michigan | E54: Jackson | G54: Corn | H54: Bushel | I54: Nonirrigated | J54: 134.13 | K54: 137.18 | L54: 157.44 | M54: 137.75 | N54: 166.76 | O54: 165.68 | P54: 154.412 | Q54: 157.8584 | R54: 1.45 | T54: 153.6233333 | U54: ='Background Calculations'!$L$54 -> 4.85 | V54: 745.0731667 | W54: 640.7629233 | X54: 74.50731667 | Y54: ='2024 Farm Bill Calculator'!$E$23 -> 165.7666667 | Z54: ='2024 Farm Bill Calculator'!$E$37 -> 4.5 | AA54: 745.95 | AB54: 0 | AC54: 0
B55: KalamazooCornIrrigated | C55: 26027 | D55: Michigan | E55: Kalamazoo | G55: Corn | H55: Bushel | I55: Irrigated | J55: 220.53 | K55: 161.55 | L55: 193.97 | M55: 217.06 | N55: 221.97 | O55: 213.25 | P55: 203.27 | Q55: 211.614 | R55: 1.71 | T55: 208.0933333 | U55: ='Background Calculations'!$L$54 -> 4.85 | V55: 1009.252667 | W55: 867.9572933 | X55: 100.9252667 | Y55: ='2024 Farm Bill Calculator'!$E$23 -> 165.7666667 | Z55: ='2024 Farm Bill Calculator'!$E$37 -> 4.5 | AA55: 745.95 | AB55: 122.0072933 | AC55: 100.9252667
B56: KalamazooCornNonirrigated | C56: 26027 | D56: Michigan | E56: Kalamazoo | G56: Corn | H56: Bushel | I56: Nonirrigated | J56: 151.81 | K56: 153.4 | L56: 143.9 | M56: 140.77 | N56: 171.77 | O56: 168.48 | P56: 157.144 | Q56: 157.8928 | R56: 1.48 | T56: 155.26 | U56: ='Background Calculations'!$L$54 -> 4.85 | V56: 753.011 | W56: 647.58946 | X56: 75.3011 | Y56: ='2024 Farm Bill Calculator'!$E$23 -> 165.7666667 | Z56: ='2024 Farm Bill Calculator'!$E$37 -> 4.5 | AA56: 745.95 | AB56: 0 | AC56: 0
B57: KalkaskaCornAll | C57: 26029 | D57: Michigan | E57: Kalkaska | G57: Corn | H57: Bushel | I57: All | J57: 129 | K57: 111 | L57: 62.4 | M57: 104.2 | N57: 120.23 | O57: 133.69 | P57: 106.304 | Q57: 105.3648 | T57: 111.81 | U57: ='Background Calculations'!$L$54 -> 4.85 | V57: 542.2785 | W57: 466.35951 | X57: 54.22785 | Y57: ='2024 Farm Bill Calculator'!$E$23 -> 165.7666667 | Z57: ='2024 Farm Bill Calculator'!$E$37 -> 4.5 | AA57: 745.95 | AB57: 0 | AC57: 0
B58: KentCornIrrigated | C58: 26029 | D58: Michigan | E58: Kent | G58: Corn | H58: Bushel | I58: Irrigated | J58: 205.72 | K58: 170.59 | L58: 181.61 | M58: 199.97 | N58: 201.72 | O58: 212.57 | P58: 195.012 | Q58: 199.8964 | R58: 1.72 | T58: 194.4333333 | U58: ='Background Calculations'!$L$54 -> 4.85 | V58: 943.0016667 | W58: 810.9814333 | X58: 94.30016667 | Y58: ='2024 Farm Bill Calculator'!$E$23 -> 165.7666667 | Z58: ='2024 Farm Bill Calculator'!$E$37 -> 4.5 | AA58: 745.95 | AB58: 65.03143333 | AC58: 65.03143333
B59: KentCornNonirrigated | C59: 26029 | D59: Michigan | E59: Kent | G59: Corn | H59: Bushel | I59: Nonirrigated | J59: 158.54 | K59: 151.22 | L59: 151.37 | M59: 169.27 | N59: 186.03 | O59: 176.67 | P59: 168.592 | Q59: 172.0664 | R59: 1.68 | T59: 165.77 | U59: ='Background Calculations'!$L$54 -> 4.85 | V59: 803.9845 | W59: 691.42667 | X59: 80.39845 | Y59: ='2024 Farm Bill Calculator'!$E$23 -> 165.7666667 | Z59: ='2024 Farm Bill Calculator'!$E$37 -> 4.5 | AA59: 745.95 | AB59: 0 | AC59: 0
B60: LakeCornAll | C60: 26031 | D60: Michigan | E60: Lake | G60: Corn | H60: Bushel | I60: All | J60: 140 | K60: 78.17 | L60: 138.51 | M60: 154.4 | N60: 157.86 | O60: 158.28 | P60: 137.444 | Q60: 149.2988 | T60: 150.2566667 | U60: ='Background Calculations'!$L$54 -> 4.85 | V60: 728.7448333 | W60: 626.7205567 | X60: 72.87448333 | Y60: ='2024 Farm Bill Calculator'!$E$23 -> 165.7666667 | Z60: ='2024 Farm Bill Calculator'!$E$37 -> 4.5 | AA60: 745.95 | AB60: 0 | AC60: 0
B61: LapeerCornAll | C61: 26031 | D61: Michigan | E61: Lapeer | G61: Corn | H61: Bushel | I61: All | J61: 194.26 | K61: 184.31 | L61: 151.59 | M61: 177.55 | N61: 189.34 | O61: 154.96 | P61: 173.69 | Q61: 171.566 | R61: 2.14 | T61: 172.2733333 | U61: ='Background Calculations'!$L$54 -> 4.85 | V61: 835.5256667 | W61: 718.5520733 | X61: 83.55256667 | Y61: ='2024 Farm Bill Calculator'!$E$23 -> 165.7666667 | Z61: ='2024 Farm Bill Calculator'!$E$37 -> 4.5 | AA61: 745.95 | AB61: 0 | AC61: 0
B62: LeelanauCornAll | C62: 26031 | D62: Michigan | E62: Leelanau | G62: Corn | H62: Bushel | I62: All | J62: 118.07 | K62: 100.34 | L62: 107.78 | M62: 133.52 | N62: 150.25 | O62: 116.28 | P62: 122.654 | Q62: 127.1168 | R62: 1.02 | T62: 119.1933333 | U62: ='Background Calculations'!$L$54 -> 4.85 | V62: 578.0876667 | W62: 497.1553933 | X62: 57.80876667 | Y62: ='2024 Farm Bill Calculator'!$E$23 -> 165.7666667 | Z62: ='2024 Farm Bill Calculator'!$E$37 -> 4.5 | AA62: 745.95 | AB62: 0 | AC62: 0
B63: LenaweeCornIrrigated | C63: 26033 | D63: Michigan | E63: Lenawee | G63: Corn | H63: Bushel | I63: Irrigated | J63: 232.36 | K63: 211.03 | L63: 216.26 | M63: 215.93 | N63: 210.42 | O63: 226.67 | P63: 217.582 | Q63: 218.8924 | R63: 1.52 | T63: 214.4066667 | U63: ='Background Calculations'!$L$54 -> 4.85 | V63: 1039.872333 | W63: 894.2902067 | X63: 103.9872333 | Y63: ='2024 Farm Bill Calculator'!$E$23 -> 165.7666667 | Z63: ='2024 Farm Bill Calculator'!$E$37 -> 4.5 | AA63: 745.95 | AB63: 148.3402067 | AC63: 103.9872333
B64: LenaweeCornNonirrigated | C64: 26033 | D64: Michigan | E64: Lenawee | G64: Corn | H64: Bushel | I64: Nonirrigated | J64: 189.24 | K64: 167.71 | L64: 176.11 | M64: 169.38 | N64: 193.3 | O64: 190.17 | P64: 180.844 | Q64: 183.4708 | R64: 1.51 | T64: 178.5533333 | U64: ='Background Calculations'!$L$54 -> 4.85 | V64: 865.9836667 | W64: 744.7459533 | X64: 86.59836667 | Y64: ='2024 Farm Bill Calculator'!$E$23 -> 165.7666667 | Z64: ='2024 Farm Bill Calculator'!$E$37 -> 4.5 | AA64: 745.95 | AB64: 0 | AC64: 0
B65: LivingstonCornAll | C65: 26033 | D65: Michigan | E65: Livingston | G65: Corn | H65: Bushel | I65: All | J65: 167.78 | K65: 139.72 | L65: 168.57 | M65: 170.28 | N65: 180.43 | O65: 158.77 | P65: 165.434 | Q65: 170.5768 | R65: 1.88 | T65: 165.8733333 | U65: ='Background Calculations'!$L$54 -> 4.85 | V65: 804.4856667 | W65: 691.8576733 | X65: 80.44856667 | Y65: ='2024 Farm Bill Calculator'!$E$23 -> 165.7666667 | Z65: ='2024 Farm Bill Calculator'!$E$37 -> 4.5 | AA65: 745.95 | AB65: 0 | AC65: 0
B66: LuceCornAll | C66: 26035 | D66: Michigan | E66: Luce | G66: Corn | H66: Bushel | I66: All | J66: 61.6 | K66: 111 | L66: 61.6 | M66: 182.4 | N66: 110.84 | O66: 79.53 | P66: 109.074 | Q66: 108.6888 | T66: 100.4566667 | U66: ='Background Calculations'!$L$54 -> 4.85 | V66: 487.2148333 | W66: 419.0047567 | X66: 48.72148333 | Y66: ='2024 Farm Bill Calculator'!$E$23 -> 165.7666667 | Z66: ='2024 Farm Bill Calculator'!$E$37 -> 4.5 | AA66: 745.95 | AB66: 0 | AC66: 0
B67: MackinacCornAll | C67: 26035 | D67: Michigan | E67: Mackinac | G67: Corn | H67: Bushel | I67: All | J67: 61.6 | K67: 111 | L67: 61.6 | M67: 182.9 | N67: 110.84 | O67: 79.53 | P67: 109.174 | Q67: 108.8088 | T67: 100.4566667 | U67: ='Background Calculations'!$L$54 -> 4.85 | V67: 487.2148333 | W67: 419.0047567 | X67: 48.72148333 | Y67: ='2024 Farm Bill Calculator'!$E$23 -> 165.7666667 | Z67: ='2024 Farm Bill Calculator'!$E$37 -> 4.5 | AA67: 745.95 | AB67: 0 | AC67: 0
B68: MacombCornAll | C68: 26035 | D68: Michigan | E68: Macomb | G68: Corn | H68: Bushel | I68: All | J68: 190.48 | K68: 190.42 | L68: 160.03 | M68: 169.91 | N68: 178.74 | O68: 174.48 | P68: 176.826 | Q68: 174.1072 | R68: 2.11 | T68: 174.3766667 | U68: ='Background Calculations'!$L$54 -> 4.85 | V68: 845.7268333 | W68: 727.3250767 | X68: 84.57268333 | Y68: ='2024 Farm Bill Calculator'!$E$23 -> 165.7666667 | Z68: ='2024 Farm Bill Calculator'!$E$37 -> 4.5 | AA68: 745.95 | AB68: 0 | AC68: 0
B69: =E69&G69&I69 -> ManisteeCornAll | C69: 26037 | D69: Michigan | E69: Manistee | G69: Corn | H69: Bushel | I69: All | J69: 127.48 | K69: 148.52 | L69: 108.6 | M69: 120.05 | N69: 155.07 | O69: 159.64 | P69: =AVERAGE(K69:O69)+R69 -> 139.886 | Q69: =AVERAGE(L69:P69)+R69 -> 138.1592 | R69: 1.51 | T69: =(SUM(K69:O69)-MIN(K69:O69)-MAX(K69:O69))/(COUNT(K69:O69)-2) -> 141.2133333 | U69: ='Background Calculations'!$L$54 -> 4.85 | V69: =T69*U69 -> 684.8846667 | W69: =V69*0.86 -> 589.0008133 | X69: =V69*0.1 -> 68.48846667 | Y69: ='2024 Farm Bill Calculator'!$E$23 -> 165.7666667 | Z69: ='2024 Farm Bill Calculator'!$E$37 -> 4.5 | AA69: 745.95 | AB69: 0 | AC69: 0
B70: MarquetteCornAll | C70: 26037 | D70: Michigan | E70: Marquette | G70: Corn | H70: Bushel | I70: All | J70: 58.4 | K70: 111 | L70: 58.49 | M70: 184 | N70: 110.84 | O70: 79.53 | P70: 108.772 | Q70: 108.3264 | T70: 100.4566667 | U70: ='Background Calculations'!$L$54 -> 4.85 | V70: 487.2148333 | W70: 419.0047567 | X70: 48.72148333 | Y70: ='2024 Farm Bill Calculator'!$E$23 -> 165.7666667 | Z70: ='2024 Farm Bill Calculator'!$E$37 -> 4.5 | AA70: =Z70*Y70 -> 745.95 | AB70: =IF(W70-AA70>0,W70-AA70,0) -> 0 | AC70: =MIN(AB70,X70) -> 0
B71: MasonCornIrrigated | C71: 26037 | D71: Michigan | E71: Mason | G71: Corn | H71: Bushel | I71: Irrigated | J71: 207.66 | K71: 186.02 | L71: 178.25 | M71: 198.83 | N71: 207.63 | O71: 181.17 | P71: 192.2 | Q71: 193.436 | R71: 1.82 | T71: 188.6733333 | U71: ='Background Calculations'!$L$54 -> 4.85 | V71: 915.0656667 | W71: 786.9564733 | X71: 91.50656667 | Y71: ='2024 Farm Bill Calculator'!$E$23 -> 165.7666667 | Z71: ='2024 Farm Bill Calculator'!$E$37 -> 4.5 | AA71: 745.95 | AB71: 41.00647333 | AC71: 41.00647333
B72: MasonCornNonirrigated | C72: 26037 | D72: Michigan | E72: Mason | G72: Corn | H72: Bushel | I72: Nonirrigated | J72: 178.77 | K72: 139.85 | L72: 141.48 | M72: 161.97 | N72: 171.74 | O72: 164.32 | P72: 157.652 | Q72: 161.2124 | R72: 1.78 | T72: 155.9233333 | U72: ='Background Calculations'!$L$54 -> 4.85 | V72: 756.2281667 | W72: 650.3562233 | X72: 75.62281667 | Y72: ='2024 Farm Bill Calculator'!$E$23 -> 165.7666667 | Z72: ='2024 Farm Bill Calculator'!$E$37 -> 4.5 | AA72: 745.95 | AB72: 0 | AC72: 0
B73: MecostaCornIrrigated | C73: 26037 | D73: Michigan | E73: Mecosta | G73: Corn | H73: Bushel | I73: Irrigated | J73: 196.77 | K73: 161.75 | L73: 171.67 | M73: 187.59 | N73: 203.04 | O73: 181.61 | P73: 182.882 | Q73: 187.1084 | R73: 1.75 | T73: 180.29 | U73: ='Background Calculations'!$L$54 -> 4.85 | V73: 874.4065 | W73: 751.98959 | X73: 87.44065 | Y73: ='2024 Farm Bill Calculator'!$E$23 -> 165.7666667 | Z73: ='2024 Farm Bill Calculator'!$E$37 -> 4.5 | AA73: 745.95 | AB73: 6.03959 | AC73: 6.03959
B74: MecostaCornNonirrigated | C74: 26041 | D74: Michigan | E74: Mecosta | G74: Corn | H74: Bushel | I74: Nonirrigated | J74: 134.12 | K74: 123 | L74: 119.68 | M74: 96.8 | N74: 131.26 | O74: 105.95 | P74: 116.938 | Q74: 115.7256 | R74: 1.6 | T74: 116.21 | U74: ='Background Calculations'!$L$54 -> 4.85 | V74: 563.6185 | W74: 484.71191 | X74: 56.36185 | Y74: ='2024 Farm Bill Calculator'!$E$23 -> 165.7666667 | Z74: ='2024 Farm Bill Calculator'!$E$37 -> 4.5 | AA74: 745.95 | AB74: 0 | AC74: 0
B75: MenomineeCornAll | C75: 26041 | D75: Michigan | E75: Menominee | G75: Corn | H75: Bushel | I75: All | J75: 68.2 | K75: 153.99 | L75: 66 | M75: 192.59 | N75: 134.54 | O75: 78.99 | P75: 125.922 | Q75: 120.3084 | R75: 0.7 | T75: 122.5066667 | U75: ='Background Calculations'!$L$54 -> 4.85 | V75: 594.1573333 | W75: 510.9753067 | X75: 59.41573333 | Y75: ='2024 Farm Bill Calculator'!$E$23 -> 165.7666667 | Z75: ='2024 Farm Bill Calculator'!$E$37 -> 4.5 | AA75: 745.95 | AB75: 0 | AC75: 0
B76: MidlandCornIrrigated | C76: 26041 | D76: Michigan | E76: Midland | G76: Corn | H76: Bushel | I76: Irrigated | J76: 183.42 | K76: 195.52 | L76: 187.52 | M76: 180.7 | N76: 181.83 | O76: 192 | P76: 189.584 | Q76: 188.3968 | R76: 2.07 | T76: 187.1166667 | U76: ='Background Calculations'!$L$54 -> 4.85 | V76: 907.5158333 | W76: 780.4636167 | X76: 90.75158333 | Y76: ='2024 Farm Bill Calculator'!$E$23 -> 165.7666667 | Z76: ='2024 Farm Bill Calculator'!$E$37 -> 4.5 | AA76: 745.95 | AB76: 34.51361667 | AC76: 34.51361667
B77: MidlandCornNonirrigated | C77: 26043 | D77: Michigan | E77: Midland | G77: Corn | H77: Bushel | I77: Nonirrigated | J77: 168.03 | K77: 172.6 | L77: 153.19 | M77: 165.2 | N77: 178.55 | O77: 180.6 | P77: 172.088 | Q77: 171.9856 | R77: 2.06 | T77: 172.1166667 | U77: ='Background Calculations'!$L$54 -> 4.85 | V77: 834.7658333 | W77: 717.8986167 | X77: 83.47658333 | Y77: ='2024 Farm Bill Calculator'!$E$23 -> 165.7666667 | Z77: ='2024 Farm Bill Calculator'!$E$37 -> 4.5 | AA77: 745.95 | AB77: 0 | AC77: 0
B78: MissaukeeCornIrrigated | C78: 26045 | D78: Michigan | E78: Missaukee | G78: Corn | H78: Bushel | I78: Irrigated | J78: 200.94 | K78: 197.53 | L78: 185.44 | M78: 214.83 | N78: 231.57 | O78: 218.26 | P78: 210.466 | Q78: 213.0532 | R78: 0.94 | T78: 210.2066667 | U78: ='Background Calculations'!$L$54 -> 4.85 | V78: 1019.502333 | W78: 876.7720067 | X78: 101.9502333 | Y78: ='2024 Farm Bill Calculator'!$E$23 -> 165.7666667 | Z78: ='2024 Farm Bill Calculator'!$E$37 -> 4.5 | AA78: 745.95 | AB78: 130.8220067 | AC78: 101.9502333
B79: MissaukeeCornNonirrigated | C79: 26045 | D79: Michigan | E79: Missaukee | G79: Corn | H79: Bushel | I79: Nonirrigated | J79: 157.37 | K79: 126.34 | L79: 148.44 | M79: 151.47 | N79: 204.7 | O79: 190.35 | P79: 165.2 | Q79: 172.972 | R79: 0.94 | T79: 163.42 | U79: ='Background Calculations'!$L$54 -> 4.85 | V79: 792.587 | W79: 681.62482 | X79: 79.2587 | Y79: ='2024 Farm Bill Calculator'!$E$23 -> 165.7666667 | Z79: ='2024 Farm Bill Calculator'!$E$37 -> 4.5 | AA79: 745.95 | AB79: 0 | AC79: 0
B80: MonroeCornIrrigated | C80: 26045 | D80: Michigan | E80: Monroe | G80: Corn | H80: Bushel | I80: Irrigated | J80: 229.4 | K80: 179.23 | L80: 225.03 | M80: 225.56 | N80: 218.93 | O80: 237.8 | P80: 219.21 | Q80: 227.206 | R80: 1.9 | T80: 223.1733333 | U80: ='Background Calculations'!$L$54 -> 4.85 | V80: 1082.390667 | W80: 930.8559733 | X80: 108.2390667 | Y80: ='2024 Farm Bill Calculator'!$E$23 -> 165.7666667 | Z80: ='2024 Farm Bill Calculator'!$E$37 -> 4.5 | AA80: 745.95 | AB80: 184.9059733 | AC80: 108.2390667
B81: MonroeCornNonirrigated | C81: 26045 | D81: Michigan | E81: Monroe | G81: Corn | H81: Bushel | I81: Nonirrigated | J81: 202.6 | K81: 180.64 | L81: 189.31 | M81: 149.51 | N81: 205.82 | O81: 172.75 | P81: 181.486 | Q81: 181.6552 | R81: 1.88 | T81: 180.9 | U81: ='Background Calculations'!$L$54 -> 4.85 | V81: 877.365 | W81: 754.5339 | X81: 87.7365 | Y81: ='2024 Farm Bill Calculator'!$E$23 -> 165.7666667 | Z81: ='2024 Farm Bill Calculator'!$E$37 -> 4.5 | AA81: 745.95 | AB81: 8.5839 | AC81: 8.5839
B82: MontcalmCornIrrigated | C82: 26047 | D82: Michigan | E82: Montcalm | G82: Corn | H82: Bushel | I82: Irrigated | J82: 195.12 | K82: 201.03 | L82: 184.85 | M82: 196.87 | N82: 201.41 | O82: 203.36 | P82: 199.314 | Q82: 198.9708 | R82: 1.81 | T82: 199.77 | U82: ='Background Calculations'!$L$54 -> 4.85 | V82: 968.8845 | W82: 833.24067 | X82: 96.88845 | Y82: ='2024 Farm Bill Calculator'!$E$23 -> 165.7666667 | Z82: ='2024 Farm Bill Calculator'!$E$37 -> 4.5 | AA82: 745.95 | AB82: 87.29067 | AC82: 87.29067
B83: MontcalmCornNonirrigated | C83: 26047 | D83: Michigan | E83: Montcalm | G83: Corn | H83: Bushel | I83: Nonirrigated | J83: 141.8 | K83: 138.97 | L83: 129.28 | M83: 134.04 | N83: 168.22 | O83: 156.32 | P83: 146.936 | Q83: 148.5292 | R83: 1.57 | T83: 143.11 | U83: ='Background Calculations'!$L$54 -> 4.85 | V83: 694.0835 | W83: 596.91181 | X83: 69.40835 | Y83: ='2024 Farm Bill Calculator'!$E$23 -> 165.7666667 | Z83: ='2024 Farm Bill Calculator'!$E$37 -> 4.5 | AA83: 745.95 | AB83: 0 | AC83: 0
B84: MontmorencyCornAll | C84: 26047 | D84: Michigan | E84: Montmorency | G84: Corn | H84: Bushel | I84: All | J84: 150.02 | K84: 89.15 | L84: 121.68 | M84: 144.61 | N84: 170.09 | O84: 125.79 | P84: 131.934 | Q84: 140.4908 | R84: 1.67 | T84: 130.6933333 | U84: ='Background Calculations'!$L$54 -> 4.85 | V84: 633.8626667 | W84: 545.1218933 | X84: 63.38626667 | Y84: ='2024 Farm Bill Calculator'!$E$23 -> 165.7666667 | Z84: ='2024 Farm Bill Calculator'!$E$37 -> 4.5 | AA84: 745.95 | AB84: 0 | AC84: 0
B85: MuskegonCornIrrigated | C85: 26049 | D85: Michigan | E85: Muskegon | G85: Corn | H85: Bushel | I85: Irrigated | J85: 174.43 | K85: 140.75 | L85: 125.73 | M85: 164.55 | N85: 206.86 | O85: 192.91 | P85: 167.37 | Q85: 172.694 | R85: 1.21 | T85: 166.07 | U85: ='Background Calculations'!$L$54 -> 4.85 | V85: 805.4395 | W85: 692.67797 | X85: 80.54395 | Y85: ='2024 Farm Bill Calculator'!$E$23 -> 165.7666667 | Z85: ='2024 Farm Bill Calculator'!$E$37 -> 4.5 | AA85: 745.95 | AB85: 0 | AC85: 0
B86: MuskegonCornNonirrigated | C86: 26049 | D86: Michigan | E86: Muskegon | G86: Corn | H86: Bushel | I86: Nonirrigated | J86: 146.48 | K86: 130.71 | L86: 113.15 | M86: 153.22 | N86: 185.45 | O86: 176.24 | P86: 152.944 | Q86: 157.3908 | R86: 1.19 | T86: 153.39 | U86: ='Background Calculations'!$L$54 -> 4.85 | V86: 743.9415 | W86: 639.78969 | X86: 74.39415 | Y86: ='2024 Farm Bill Calculator'!$E$23 -> 165.7666667 | Z86: ='2024 Farm Bill Calculator'!$E$37 -> 4.5 | AA86: 745.95 | AB86: 0 | AC86: 0
B87: NewaygoCornIrrigated | C87: 26049 | D87: Michigan | E87: Newaygo | G87: Corn | H87: Bushel | I87: Irrigated | J87: 191.67 | K87: 181.2 | L87: 160.7 | M87: 185.12 | N87: 194.89 | O87: 190.15 | P87: 183.622 | Q87: 184.1064 | R87: 1.21 | T87: 185.49 | U87: ='Background Calculations'!$L$54 -> 4.85 | V87: 899.6265 | W87: 773.67879 | X87: 89.96265 | Y87: ='2024 Farm Bill Calculator'!$E$23 -> 165.7666667 | Z87: ='2024 Farm Bill Calculator'!$E$37 -> 4.5 | AA87: 745.95 | AB87: 27.72879 | AC87: 27.72879
B88: NewaygoCornNonirrigated | C88: 26051 | D88: Michigan | E88: Newaygo | G88: Corn | H88: Bushel | I88: Nonirrigated | J88: 139.69 | K88: 104.84 | L88: 127.64 | M88: 159.53 | N88: 180.85 | O88: 162.51 | P88: 148.264 | Q88: 156.9488 | R88: 1.19 | T88: 149.8933333 | U88: ='Background Calculations'!$L$54 -> 4.85 | V88: 726.9826667 | W88: 625.2050933 | X88: 72.69826667 | Y88: ='2024 Farm Bill Calculator'!$E$23 -> 165.7666667 | Z88: ='2024 Farm Bill Calculator'!$E$37 -> 4.5 | AA88: 745.95 | AB88: 0 | AC88: 0
B89: OaklandCornAll | C89: 26051 | D89: Michigan | E89: Oakland | G89: Corn | H89: Bushel | I89: All | J89: 153.27 | K89: 127.55 | L89: 129.17 | M89: 135.68 | N89: 176.4 | O89: 120.93 | P89: 139.546 | Q89: 141.9452 | R89: 1.6 | T89: 130.8 | U89: ='Background Calculations'!$L$54 -> 4.85 | V89: 634.38 | W89: 545.5668 | X89: 63.438 | Y89: ='2024 Farm Bill Calculator'!$E$23 -> 165.7666667 | Z89: ='2024 Farm Bill Calculator'!$E$37 -> 4.5 | AA89: 745.95 | AB89: 0 | AC89: 0
B90: OceanaCornIrrigated | C90: 26051 | D90: Michigan | E90: Oceana | G90: Corn | H90: Bushel | I90: Irrigated | J90: 173.51 | K90: 150.03 | L90: 145.17 | M90: 176.43 | N90: 185.9 | O90: 157.69 | P90: 165.014 | Q90: 168.0108 | R90: 1.97 | T90: 161.3833333 | U90: ='Background Calculations'!$L$54 -> 4.85 | V90: 782.7091667 | W90: 673.1298833 | X90: 78.27091667 | Y90: ='2024 Farm Bill Calculator'!$E$23 -> 165.7666667 | Z90: ='2024 Farm Bill Calculator'!$E$37 -> 4.5 | AA90: 745.95 | AB90: 0 | AC90: 0
B91: OceanaCornNonirrigated | C91: 26055 | D91: Michigan | E91: Oceana | G91: Corn | H91: Bushel | I91: Nonirrigated | J91: 146.85 | K91: 105.32 | L91: 117.83 | M91: 126.76 | N91: 161.63 | O91: 143.99 | P91: 132.966 | Q91: 138.4952 | R91: 1.86 | T91: 129.5266667 | U91: ='Background Calculations'!$L$54 -> 4.85 | V91: 628.2043333 | W91: 540.2557267 | X91: 62.82043333 | Y91: ='2024 Farm Bill Calculator'!$E$23 -> 165.7666667 | Z91: ='2024 Farm Bill Calculator'!$E$37 -> 4.5 | AA91: 745.95 | AB91: 0 | AC91: 0
B92: OgemawCornAll | C92: 26055 | D92: Michigan | E92: Ogemaw | G92: Corn | H92: Bushel | I92: All | J92: 160.12 | K92: 171.93 | L92: 152.27 | M92: 152.68 | N92: 196.03 | O92: 156.78 | P92: 167.758 | Q92: 166.9236 | R92: 1.82 | T92: 160.4633333 | U92: ='Background Calculations'!$L$54 -> 4.85 | V92: 778.2471667 | W92: 669.2925633 | X92: 77.82471667 | Y92: ='2024 Farm Bill Calculator'!$E$23 -> 165.7666667 | Z92: ='2024 Farm Bill Calculator'!$E$37 -> 4.5 | AA92: 745.95 | AB92: 0 | AC92: 0
B93: OntonagonCornAll | C93: 26055 | D93: Michigan | E93: Ontonagon | G93: Corn | H93: Bushel | I93: All | J93: 58.4 | K93: 111 | L93: 58.49 | M93: 141.9 | N93: 110.84 | O93: 79.53 | P93: 100.352 | Q93: 98.2224 | T93: 100.4566667 | U93: ='Background Calculations'!$L$54 -> 4.85 | V93: 487.2148333 | W93: 419.0047567 | X93: 48.72148333 | Y93: ='2024 Farm Bill Calculator'!$E$23 -> 165.7666667 | Z93: ='2024 Farm Bill Calculator'!$E$37 -> 4.5 | AA93: 745.95 | AB93: 0 | AC93: 0
B94: OsceolaCornAll | C94: 26057 | D94: Michigan | E94: Osceola | G94: Corn | H94: Bushel | I94: All | J94: 166.85 | K94: 120.49 | L94: 142.86 | M94: 162.84 | N94: 201.24 | O94: 167.87 | P94: 160.28 | Q94: 168.238 | R94: 1.22 | T94: 157.8566667 | U94: ='Background Calculations'!$L$54 -> 4.85 | V94: 765.6048333 | W94: 658.4201567 | X94: 76.56048333 | Y94: ='2024 Farm Bill Calculator'!$E$23 -> 165.7666667 | Z94: ='2024 Farm Bill Calculator'!$E$37 -> 4.5 | AA94: 745.95 | AB94: 0 | AC94: 0
B95: OscodaCornAll | C95: 26057 | D95: Michigan | E95: Oscoda | G95: Corn | H95: Bushel | I95: All | J95: 131 | K95: 117 | L95: 110.3 | M95: 147.5 | N95: 188.78 | O95: 152.14 | P95: 143.144 | Q95: 148.3728 | T95: 138.88 | U95: ='Background Calculations'!$L$54 -> 4.85 | V95: 673.568 | W95: 579.26848 | X95: 67.3568 | Y95: ='2024 Farm Bill Calculator'!$E$23 -> 165.7666667 | Z95: ='2024 Farm Bill Calculator'!$E$37 -> 4.5 | AA95: 745.95 | AB95: 0 | AC95: 0
B96: OtsegoCornAll | C96: 26057 | D96: Michigan | E96: Otsego | G96: Corn | H96: Bushel | I96: All | J96: 140.49 | K96: 100.88 | L96: 133.31 | M96: 151.43 | N96: 144.73 | O96: 78.79 | P96: 123.338 | Q96: 127.8296 | R96: 1.51 | T96: 126.3066667 | U96: ='Background Calculations'!$L$54 -> 4.85 | V96: 612.5873333 | W96: 526.8251067 | X96: 61.25873333 | Y96: ='2024 Farm Bill Calculator'!$E$23 -> 165.7666667 | Z96: ='2024 Farm Bill Calculator'!$E$37 -> 4.5 | AA96: 745.95 | AB96: 0 | AC96: 0
B97: OttawaCornIrrigated | C97: 26057 | D97: Michigan | E97: Ottawa | G97: Corn | H97: Bushel | I97: Irrigated | J97: 193.4 | K97: 192.84 | L97: 171.57 | M97: 200.45 | N97: 210.64 | O97: 200.12 | P97: 196.544 | Q97: 197.2848 | R97: 1.42 | T97: 197.8033333 | U97: ='Background Calculations'!$L$54 -> 4.85 | V97: 959.3461667 | W97: 825.0377033 | X97: 95.93461667 | Y97: ='2024 Farm Bill Calculator'!$E$23 -> 165.7666667 | Z97: ='2024 Farm Bill Calculator'!$E$37 -> 4.5 | AA97: 745.95 | AB97: 79.08770333 | AC97: 79.08770333
B98: OttawaCornNonirrigated | C98: 26057 | D98: Michigan | E98: Ottawa | G98: Corn | H98: Bushel | I98: Nonirrigated | J98: 172.94 | K98: 145.98 | L98: 142.5 | M98: 140.76 | N98: 186.65 | O98: 182.63 | P98: 161.124 | Q98: 164.1528 | R98: 1.42 | T98: 157.0366667 | U98: ='Background Calculations'!$L$54 -> 4.85 | V98: 761.6278333 | W98: 654.9999367 | X98: 76.16278333 | Y98: ='2024 Farm Bill Calculator'!$E$23 -> 165.7666667 | Z98: ='2024 Farm Bill Calculator'!$E$37 -> 4.5 | AA98: 745.95 | AB98: 0 | AC98: 0
B99: Presque IsleCornAll | C99: 26059 | D99: Michigan | E99: Presque Isle | G99: Corn | H99: Bushel | I99: All | J99: 134.13 | K99: 93.79 | L99: 92.69 | M99: 121.76 | N99: 154.88 | O99: 124.77 | P99: 119.338 | Q99: 124.4476 | R99: 1.76 | T99: 113.44 | U99: ='Background Calculations'!$L$54 -> 4.85 | V99: 550.184 | W99: 473.15824 | X99: 55.0184 | Y99: ='2024 Farm Bill Calculator'!$E$23 -> 165.7666667 | Z99: ='2024 Farm Bill Calculator'!$E$37 -> 4.5 | AA99: 745.95 | AB99: 0 | AC99: 0
B100: RoscommonCornAll | C100: 26059 | D100: Michigan | E100: Roscommon | G100: Corn | H100: Bushel | I100: All | J100: 131 | K100: 117 | L100: 127.65 | M100: 132.87 | N100: 188.78 | O100: 156.28 | P100: 144.516 | Q100: 150.0192 | T100: 138.9333333 | U100: ='Background Calculations'!$L$54 -> 4.85 | V100: 673.8266667 | W100: 579.4909333 | X100: 67.38266667 | Y100: ='2024 Farm Bill Calculator'!$E$23 -> 165.7666667 | Z100: ='2024 Farm Bill Calculator'!$E$37 -> 4.5 | AA100: 745.95 | AB100: 0 | AC100: 0
B101: SaginawCornAll | C101: 26059 | D101: Michigan | E101: Saginaw | G101: Corn | H101: Bushel | I101: All | J101: 177.97 | K101: 189.44 | L101: 154.72 | M101: 164.78 | N101: 175.66 | O101: 171.11 | P101: 173.082 | Q101: 169.8104 | R101: 1.94 | T101: 170.5166667 | U101: ='Background Calculations'!$L$54 -> 4.85 | V101: 827.0058333 | W101: 711.2250167 | X101: 82.70058333 | Y101: ='2024 Farm Bill Calculator'!$E$23 -> 165.7666667 | Z101: ='2024 Farm Bill Calculator'!$E$37 -> 4.5 | AA101: 745.95 | AB101: 0 | AC101: 0
B102: SanilacCornAll | C102: 26059 | D102: Michigan | E102: Sanilac | G102: Corn | H102: Bushel | I102: All | J102: 205.75 | K102: 192.48 | L102: 181.39 | M102: 199.29 | N102: 220.5 | O102: 187.69 | P102: 198.34 | Q102: 199.512 | R102: 2.07 | T102: 193.1533333 | U102: ='Background Calculations'!$L$54 -> 4.85 | V102: 936.7936667 | W102: 805.6425533 | X102: 93.67936667 | Y102: ='2024 Farm Bill Calculator'!$E$23 -> 165.7666667 | Z102: ='2024 Farm Bill Calculator'!$E$37 -> 4.5 | AA102: 745.95 | AB102: 59.69255333 | AC102: 59.69255333
B103: SchoolcraftCornAll | C103: 26059 | D103: Michigan | E103: Schoolcraft | G103: Corn | H103: Bushel | I103: All | J103: 61.6 | K103: 111 | L103: 61.6 | M103: 182.9 | N103: 110.84 | O103: 79.53 | P103: 109.174 | Q103: 108.8088 | T103: 100.4566667 | U103: ='Background Calculations'!$L$54 -> 4.85 | V103: 487.2148333 | W103: 419.0047567 | X103: 48.72148333 | Y103: ='2024 Farm Bill Calculator'!$E$23 -> 165.7666667 | Z103: ='2024 Farm Bill Calculator'!$E$37 -> 4.5 | AA103: 745.95 | AB103: 0 | AC103: 0
B104: ShiawasseeCornAll | C104: 26061 | D104: Michigan | E104: Shiawassee | G104: Corn | H104: Bushel | I104: All | J104: 165.59 | K104: 160.92 | L104: 159.34 | M104: 176.13 | N104: 176.62 | O104: 160.25 | P104: 168.552 | Q104: 170.0784 | R104: 1.9 | T104: 165.7666667 | U104: ='Background Calculations'!$L$54 -> 4.85 | V104: 803.9683333 | W104: 691.4127667 | X104: 80.39683333 | Y104: ='2024 Farm Bill Calculator'!$E$23 -> 165.7666667 | Z104: ='2024 Farm Bill Calculator'!$E$37 -> 4.5 | AA104: 745.95 | AB104: 0 | AC104: 0
B105: St. ClairCornAll | C105: 26063 | D105: Michigan | E105: St. Clair | G105: Corn | H105: Bushel | I105: All | J105: 178.18 | K105: 188.82 | L105: 160.56 | M105: 176.05 | N105: 167.95 | O105: 148.91 | P105: 170.688 | Q105: 167.0616 | R105: 2.23 | T105: 168.1866667 | U105: ='Background Calculations'!$L$54 -> 4.85 | V105: 815.7053333 | W105: 701.5065867 | X105: 81.57053333 | Y105: ='2024 Farm Bill Calculator'!$E$23 -> 165.7666667 | Z105: ='2024 Farm Bill Calculator'!$E$37 -> 4.5 | AA105: 745.95 | AB105: 0 | AC105: 0
B106: St. JosephCornIrrigated | C106: 26063 | D106: Michigan | E106: St. Joseph | G106: Corn | H106: Bushel | I106: Irrigated | J106: 151.1 | K106: 150.25 | L106: 151.6 | M106: 189.75 | N106: 198.88 | O106: 167.98 | P106: 173.042 | Q106: 177.6004 | R106: 1.35 | T106: 169.7766667 | U106: ='Background Calculations'!$L$54 -> 4.85 | V106: 823.4168333 | W106: 708.1384767 | X106: 82.34168333 | Y106: ='2024 Farm Bill Calculator'!$E$23 -> 165.7666667 | Z106: ='2024 Farm Bill Calculator'!$E$37 -> 4.5 | AA106: 745.95 | AB106: 0 | AC106: 0
B107: St. JosephCornNonirrigated | C107: 26063 | D107: Michigan | E107: St. Joseph | G107: Corn | H107: Bushel | I107: Nonirrigated | J107: 107.72 | K107: 158.6 | L107: 127.18 | M107: 123.46 | N107: 163.35 | O107: 141.63 | P107: 143.964 | Q107: 141.0368 | R107: 1.12 | T107: 142.47 | U107: ='Background Calculations'!$L$54 -> 4.85 | V107: 690.9795 | W107: 594.24237 | X107: 69.09795 | Y107: ='2024 Farm Bill Calculator'!$E$23 -> 165.7666667 | Z107: ='2024 Farm Bill Calculator'!$E$37 -> 4.5 | AA107: 745.95 | AB107: 0 | AC107: 0
B108: TuscolaCornIrrigated | C108: 26063 | D108: Michigan | E108: Tuscola | G108: Corn | H108: Bushel | I108: Irrigated | J108: 193.22 | K108: 218.46 | L108: 186.86 | M108: 198.85 | N108: 226.06 | O108: 193.95 | P108: 206.846 | Q108: 204.5232 | R108: 2.01 | T108: 203.7533333 | U108: ='Background Calculations'!$L$54 -> 4.85 | V108: 988.2036667 | W108: 849.8551533 | X108: 98.82036667 | Y108: ='2024 Farm Bill Calculator'!$E$23 -> 165.7666667 | Z108: ='2024 Farm Bill Calculator'!$E$37 -> 4.5 | AA108: 745.95 | AB108: 103.9051533 | AC108: 98.82036667
B109: TuscolaCornNonirrigated | C109: 26063 | D109: Michigan | E109: Tuscola | G109: Corn | H109: Bushel | I109: Nonirrigated | J109: 182.25 | K109: 180.55 | L109: 172.38 | M109: 179.86 | N109: 210.68 | O109: 178.45 | P109: 186.384 | Q109: 187.5508 | R109: 2 | T109: 179.62 | U109: ='Background Calculations'!$L$54 -> 4.85 | V109: 871.157 | W109: 749.19502 | X109: 87.1157 | Y109: ='2024 Farm Bill Calculator'!$E$23 -> 165.7666667 | Z109: ='2024 Farm Bill Calculator'!$E$37 -> 4.5 | AA109: 745.95 | AB109: 3.24502 | AC109: 3.24502
B110: Van BurenCornIrrigated | C110: 26065 | D110: Michigan | E110: Van Buren | G110: Corn | H110: Bushel | I110: Irrigated | J110: 213.5 | K110: 215.55 | L110: 198.12 | M110: 196.91 | N110: 192.23 | O110: 205.56 | P110: 203.584 | Q110: 201.1908 | R110: 1.91 | T110: 200.1966667 | U110: ='Background Calculations'!$L$54 -> 4.85 | V110: 970.9538333 | W110: 835.0202967 | X110: 97.09538333 | Y110: ='2024 Farm Bill Calculator'!$E$23 -> 165.7666667 | Z110: ='2024 Farm Bill Calculator'!$E$37 -> 4.5 | AA110: 745.95 | AB110: 89.07029667 | AC110: 89.07029667
B111: Van BurenCornNonirrigated | C111: 26065 | D111: Michigan | E111: Van Buren | G111: Corn | H111: Bushel | I111: Nonirrigated | J111: 166.57 | K111: 149.55 | L111: 128.45 | M111: 130.47 | N111: 151.08 | O111: 148.19 | P111: 143.298 | Q111: 142.0476 | R111: 1.75 | T111: 142.7366667 | U111: ='Background Calculations'!$L$54 -> 4.85 | V111: 692.2728333 | W111: 595.3546367 | X111: 69.22728333 | Y111: ='2024 Farm Bill Calculator'!$E$23 -> 165.7666667 | Z111: ='2024 Farm Bill Calculator'!$E$37 -> 4.5 | AA111: 745.95 | AB111: 0 | AC111: 0
B112: WashtenawCornIrrigated | C112: 26065 | D112: Michigan | E112: Washtenaw | G112: Corn | H112: Bushel | I112: Irrigated | J112: 229.9 | K112: 217.81 | L112: 225.41 | M112: 178.44 | N112: 224.52 | O112: 218.18 | P112: 214.622 | Q112: 213.9844 | R112: 1.75 | T112: 220.17 | U112: ='Background Calculations'!$L$54 -> 4.85 | V112: 1067.8245 | W112: 918.32907 | X112: 106.78245 | Y112: ='2024 Farm Bill Calculator'!$E$23 -> 165.7666667 | Z112: ='2024 Farm Bill Calculator'!$E$37 -> 4.5 | AA112: 745.95 | AB112: 172.37907 | AC112: 106.78245
B113: WashtenawCornNonirrigated | C113: 26065 | D113: Michigan | E113: Washtenaw | G113: Corn | H113: Bushel | I113: Nonirrigated | J113: 158.84 | K113: 140.28 | L113: 157.49 | M113: 151.41 | N113: 178.34 | O113: 151.62 | P113: 157.548 | Q113: 161.0016 | R113: 1.72 | T113: 153.5066667 | U113: ='Background Calculations'!$L$54 -> 4.85 | V113: 744.5073333 | W113: 640.2763067 | X113: 74.45073333 | Y113: ='2024 Farm Bill Calculator'!$E$23 -> 165.7666667 | Z113: ='2024 Farm Bill Calculator'!$E$37 -> 4.5 | AA113: 745.95 | AB113: 0 | AC113: 0
B114: WayneCornAll | C114: 26067 | D114: Michigan | E114: Wayne | G114: Corn | H114: Bushel | I114: All | J114: 144.68 | K114: 123.07 | L114: 135.12 | M114: 97.95 | N114: 115.61 | O114: 77.45 | P114: 111.12 | Q114: 108.73 | R114: 1.28 | T114: 112.21 | U114: ='Background Calculations'!$L$54 -> 4.85 | V114: 544.2185 | W114: 468.02791 | X114: 54.42185 | Y114: ='2024 Farm Bill Calculator'!$E$23 -> 165.7666667 | Z114: ='2024 Farm Bill Calculator'!$E$37 -> 4.5 | AA114: 745.95 | AB114: 0 | AC114: 0
B115: WexfordCornIrrigated | C115: 26067 | D115: Michigan | E115: Wexford | G115: Corn | H115: Bushel | I115: Irrigated | J115: 190.14 | K115: 115.95 | L115: 132.36 | M115: 182.17 | N115: 196.87 | O115: 188.4 | P115: 164.34 | Q115: 174.018 | R115: 1.19 | T115: 167.6433333 | U115: ='Background Calculations'!$L$54 -> 4.85 | V115: 813.0701667 | W115: 699.2403433 | X115: 81.30701667 | Y115: ='2024 Farm Bill Calculator'!$E$23 -> 165.7666667 | Z115: ='2024 Farm Bill Calculator'!$E$37 -> 4.5 | AA115: 745.95 | AB115: 0 | AC115: 0
B116: WexfordCornNonirrigated | C116: 26067 | D116: Michigan | E116: Wexford | G116: Corn | H116: Bushel | I116: Nonirrigated | J116: 163.42 | K116: 158.95 | L116: 124.73 | M116: 126.27 | N116: 160.54 | O116: 158.85 | P116: 147.058 | Q116: 144.6796 | R116: 1.19 | T116: 148.0233333 | U116: ='Background Calculations'!$L$54 -> 4.85 | V116: 717.9131667 | W116: 617.4053233 | X116: 71.79131667 | Y116: ='2024 Farm Bill Calculator'!$E$23 -> 165.7666667 | Z116: ='2024 Farm Bill Calculator'!$E$37 -> 4.5 | AA116: 745.95 | AB116: 0 | AC116: 0
B117: AlconaSoybeansAll | C117: 26067 | D117: Michigan | E117: Alcona | G117: Soybeans | H117: Bushel | I117: All | J117: 37 | K117: 35.03 | L117: 35.23 | M117: 38.2 | N117: 46.18 | O117: 41.38 | P117: 39.204 | Q117: 40.0388 | T117: 38.27 | U117: ='Background Calculations'!$L$55 -> 11.12 | V117: 425.5624 | W117: 365.983664 | X117: 42.55624 | Y117: ='2024 Farm Bill Calculator'!$G$23 -> 48.46333333 | Z117: ='2024 Farm Bill Calculator'!$G$37 -> 11.25 | AA117: =Z117*Y117 -> 545.2125 | AB117: =IF(W117-AA117>0,W117-AA117,0) -> 0 | AC117: =MIN(AB117,X117) -> 0
B118: AlleganSoybeansIrrigated | C118: 26067 | D118: Michigan | E118: Allegan | G118: Soybeans | H118: Bushel | I118: Irrigated | J118: 59.69 | K118: 64.93 | L118: 63.32 | M118: 65.53 | N118: 58.43 | O118: 61.85 | P118: 63.402 | Q118: 63.0964 | R118: 0.59 | T118: 63.36666667 | U118: ='Background Calculations'!$L$55 -> 11.12 | V118: 704.6373333 | W118: 605.9881067 | X118: 70.46373333 | Y118: ='2024 Farm Bill Calculator'!$G$23 -> 48.46333333 | Z118: ='2024 Farm Bill Calculator'!$G$37 -> 11.25 | AA118: =Z118*Y118 -> 545.2125 | AB118: =IF(W118-AA118>0,W118-AA118,0) -> 60.77560667 | AC118: =MIN(AB118,X118) -> 60.77560667
B119: AlleganSoybeansNonirrigated | C119: 26069 | D119: Michigan | E119: Allegan | G119: Soybeans | H119: Bushel | I119: Nonirrigated | J119: 51.05 | K119: 52.69 | L119: 40.01 | M119: 47.32 | N119: 45.18 | O119: 49.34 | P119: 47.488 | Q119: 46.4476 | R119: 0.58 | T119: 47.28 | U119: ='Background Calculations'!$L$55 -> 11.12 | V119: 525.7536 | W119: 452.148096 | X119: 52.57536 | Y119: ='2024 Farm Bill Calculator'!$G$23 -> 48.46333333 | Z119: ='2024 Farm Bill Calculator'!$G$37 -> 11.25 | AA119: 545.2125 | AB119: 0 | AC119: 0
B120: AlpenaSoybeansAll | C120: 26069 | D120: Michigan | E120: Alpena | G120: Soybeans | H120: Bushel | I120: All | J120: 35.73 | K120: 38.35 | L120: 27 | M120: 46.91 | N120: 46.76 | O120: 36.53 | P120: 39.38 | Q120: 39.586 | R120: 0.27 | T120: 40.54666667 | U120: ='Background Calculations'!$L$55 -> 11.12 | V120: 450.8789333 | W120: 387.7558827 | X120: 45.08789333 | Y120: ='2024 Farm Bill Calculator'!$G$23 -> 48.46333333 | Z120: ='2024 Farm Bill Calculator'!$G$37 -> 11.25 | AA120: 545.2125 | AB120: 0 | AC120: 0
B121: AntrimSoybeansAll | C121: 26069 | D121: Michigan | E121: Antrim | G121: Soybeans | H121: Bushel | I121: All | J121: 37 | K121: 37 | L121: 34.4 | M121: 35.6 | N121: 43.36 | O121: 38.34 | P121: 37.74 | Q121: 37.888 | T121: 36.98 | U121: ='Background Calculations'!$L$55 -> 11.12 | V121: 411.2176 | W121: 353.647136 | X121: 41.12176 | Y121: ='2024 Farm Bill Calculator'!$G$23 -> 48.46333333 | Z121: ='2024 Farm Bill Calculator'!$G$37 -> 11.25 | AA121: 545.2125 | AB121: 0 | AC121: 0
B122: ArenacSoybeansAll | C122: 26071 | D122: Michigan | E122: Arenac | G122: Soybeans | H122: Bushel | I122: All | J122: 44.29 | K122: 48.74 | L122: 34.18 | M122: 43.12 | N122: 51.09 | O122: 42.79 | P122: 44.414 | Q122: 43.5488 | R122: 0.43 | T122: 44.88333333 | U122: ='Background Calculations'!$L$55 -> 11.12 | V122: 499.1026667 | W122: 429.2282933 | X122: 49.91026667 | Y122: ='2024 Farm Bill Calculator'!$G$23 -> 48.46333333 | Z122: ='2024 Farm Bill Calculator'!$G$37 -> 11.25 | AA122: 545.2125 | AB122: 0 | AC122: 0
B123: BarrySoybeansIrrigated | C123: 26071 | D123: Michigan | E123: Barry | G123: Soybeans | H123: Bushel | I123: Irrigated | J123: 59.42 | K123: 62.29 | L123: 48.14 | M123: 58.91 | N123: 58.92 | O123: 58.26 | P123: 57.814 | Q123: 56.9188 | R123: 0.51 | T123: 58.69666667 | U123: ='Background Calculations'!$L$55 -> 11.12 | V123: 652.7069333 | W123: 561.3279627 | X123: 65.27069333 | Y123: ='2024 Farm Bill Calculator'!$G$23 -> 48.46333333 | Z123: ='2024 Farm Bill Calculator'!$G$37 -> 11.25 | AA123: 545.2125 | AB123: 16.11546267 | AC123: 16.11546267
B124: BarrySoybeansNonirrigated | C124: 26073 | D124: Michigan | E124: Barry | G124: Soybeans | H124: Bushel | I124: Nonirrigated | J124: 46.52 | K124: 49.12 | L124: 49.2 | M124: 45.14 | N124: 50.55 | O124: 50.62 | P124: 49.436 | Q124: 49.4992 | R124: 0.51 | T124: 49.62333333 | U124: ='Background Calculations'!$L$55 -> 11.12 | V124: 551.8114667 | W124: 474.5578613 | X124: 55.18114667 | Y124: ='2024 Farm Bill Calculator'!$G$23 -> 48.46333333 | Z124: ='2024 Farm Bill Calculator'!$G$37 -> 11.25 | AA124: 545.2125 | AB124: 0 | AC124: 0
B125: BaySoybeansIrrigated | C125: 26073 | D125: Michigan | E125: Bay | G125: Soybeans | H125: Bushel | I125: Irrigated | J125: 42.9 | K125: 54.67 | L125: 51.89 | M125: 62.83 | N125: 58.69 | O125: 62.35 | P125: 58.666 | Q125: 59.4652 | R125: 0.58 | T125: 58.57 | U125: ='Background Calculations'!$L$55 -> 11.12 | V125: 651.2984 | W125: 560.116624 | X125: 65.12984 | Y125: ='2024 Farm Bill Calculator'!$G$23 -> 48.46333333 | Z125: ='2024 Farm Bill Calculator'!$G$37 -> 11.25 | AA125: 545.2125 | AB125: 14.904124 | AC125: 14.904124
B126: BaySoybeansNonirrigated | C126: 26073 | D126: Michigan | E126: Bay | G126: Soybeans | H126: Bushel | I126: Nonirrigated | J126: 50.9 | K126: 60.2 | L126: 39.63 | M126: 52.66 | N126: 56.91 | O126: 49.62 | P126: 52.384 | Q126: 50.8208 | R126: 0.58 | T126: 53.06333333 | U126: ='Background Calculations'!$L$55 -> 11.12 | V126: 590.0642667 | W126: 507.4552693 | X126: 59.00642667 | Y126: ='2024 Farm Bill Calculator'!$G$23 -> 48.46333333 | Z126: ='2024 Farm Bill Calculator'!$G$37 -> 11.25 | AA126: 545.2125 | AB126: 0 | AC126: 0
B127: BerrienSoybeansIrrigated | C127: 26073 | D127: Michigan | E127: Berrien | G127: Soybeans | H127: Bushel | I127: Irrigated | J127: 57.86 | K127: 68.77 | L127: 55.7 | M127: 66.26 | N127: 62.97 | O127: 57.15 | P127: 62.64 | Q127: 61.414 | R127: 0.47 | T127: 62.12666667 | U127: ='Background Calculations'!$L$55 -> 11.12 | V127: 690.8485333 | W127: 594.1297387 | X127: 69.08485333 | Y127: ='2024 Farm Bill Calculator'!$G$23 -> 48.46333333 | Z127: ='2024 Farm Bill Calculator'!$G$37 -> 11.25 | AA127: 545.2125 | AB127: 48.91723867 | AC127: 48.91723867
B128: BerrienSoybeansNonirrigated | C128: 26073 | D128: Michigan | E128: Berrien | G128: Soybeans | H128: Bushel | I128: Nonirrigated | J128: 43.95 | K128: 53.63 | L128: 40.92 | M128: 44.37 | N128: 51.78 | O128: 44.46 | P128: 47.492 | Q128: 46.2644 | R128: 0.46 | T128: 46.87 | U128: ='Background Calculations'!$L$55 -> 11.12 | V128: 521.1944 | W128: 448.227184 | X128: 52.11944 | Y128: ='2024 Farm Bill Calculator'!$G$23 -> 48.46333333 | Z128: ='2024 Farm Bill Calculator'!$G$37 -> 11.25 | AA128: 545.2125 | AB128: 0 | AC128: 0
B129: BranchSoybeansIrrigated | C129: 26075 | D129: Michigan | E129: Branch | G129: Soybeans | H129: Bushel | I129: Irrigated | J129: 54.04 | K129: 60.46 | L129: 56.28 | M129: 59.45 | N129: 61.33 | O129: 60.65 | P129: 60.064 | Q129: 59.9848 | R129: 0.43 | T129: 60.18666667 | U129: ='Background Calculations'!$L$55 -> 11.12 | V129: 669.2757333 | W129: 575.5771307 | X129: 66.92757333 | Y129: ='2024 Farm Bill Calculator'!$G$23 -> 48.46333333 | Z129: ='2024 Farm Bill Calculator'!$G$37 -> 11.25 | AA129: 545.2125 | AB129: 30.36463067 | AC129: 30.36463067
B130: BranchSoybeansNonirrigated | C130: 26075 | D130: Michigan | E130: Branch | G130: Soybeans | H130: Bushel | I130: Nonirrigated | J130: 41.84 | K130: 48.41 | L130: 45.02 | M130: 46.33 | N130: 51.03 | O130: 52.35 | P130: 49.048 | Q130: 49.1756 | R130: 0.42 | T130: 48.59 | U130: ='Background Calculations'!$L$55 -> 11.12 | V130: 540.3208 | W130: 464.675888 | X130: 54.03208 | Y130: ='2024 Farm Bill Calculator'!$G$23 -> 48.46333333 | Z130: ='2024 Farm Bill Calculator'!$G$37 -> 11.25 | AA130: 545.2125 | AB130: 0 | AC130: 0
B131: CalhounSoybeansIrrigated | C131: 26075 | D131: Michigan | E131: Calhoun | G131: Soybeans | H131: Bushel | I131: Irrigated | J131: 55.36 | K131: 65.31 | L131: 51.57 | M131: 59.33 | N131: 60.67 | O131: 60.38 | P131: 59.862 | Q131: 58.7724 | R131: 0.41 | T131: 60.12666667 | U131: ='Background Calculations'!$L$55 -> 11.12 | V131: 668.6085333 | W131: 575.0033387 | X131: 66.86085333 | Y131: ='2024 Farm Bill Calculator'!$G$23 -> 48.46333333 | Z131: ='2024 Farm Bill Calculator'!$G$37 -> 11.25 | AA131: 545.2125 | AB131: 29.79083867 | AC131: 29.79083867
B132: CalhounSoybeansNonirrigated | C132: 26075 | D132: Michigan | E132: Calhoun | G132: Soybeans | H132: Bushel | I132: Nonirrigated | J132: 36 | K132: 45.24 | L132: 37.83 | M132: 41.23 | N132: 47.4 | O132: 48.86 | P132: 44.512 | Q132: 44.3664 | R132: 0.4 | T132: 44.62333333 | U132: ='Background Calculations'!$L$55 -> 11.12 | V132: 496.2114667 | W132: 426.7418613 | X132: 49.62114667 | Y132: ='2024 Farm Bill Calculator'!$G$23 -> 48.46333333 | Z132: ='2024 Farm Bill Calculator'!$G$37 -> 11.25 | AA132: 545.2125 | AB132: 0 | AC132: 0
B133: =E133&G133&I133 -> CassSoybeansIrrigated | C133: 26075 | D133: Michigan | E133: Cass | G133: Soybeans | H133: Bushel | I133: Irrigated | J133: 59.72 | K133: 52.35 | L133: 62.44 | M133: 64.93 | N133: 65.64 | O133: 55.19 | P133: =AVERAGE(K133:O133)+R133 -> 60.58 | Q133: =AVERAGE(L133:P133)+R133 -> 62.226 | R133: 0.47 | T133: =(SUM(K133:O133)-MIN(K133:O133)-MAX(K133:O133))/(COUNT(K133:O133)-2) -> 60.85333333 | U133: ='Background Calculations'!$L$55 -> 11.12 | V133: =T133*U133 -> 676.6890667 | W133: =V133*0.86 -> 581.9525973 | X133: =V133*0.1 -> 67.66890667 | Y133: ='2024 Farm Bill Calculator'!$G$23 -> 48.46333333 | Z133: ='2024 Farm Bill Calculator'!$G$37 -> 11.25 | AA133: 545.2125 | AB133: 36.74009733 | AC133: 36.74009733
B134: CassSoybeansNonirrigated | C134: 26077 | D134: Michigan | E134: Cass | G134: Soybeans | H134: Bushel | I134: Nonirrigated | J134: 44.03 | K134: 51.2 | L134: 43.44 | M134: 40.74 | N134: 48.88 | O134: 40.65 | P134: 45.422 | Q134: 44.2664 | R134: 0.44 | T134: 44.35333333 | U134: ='Background Calculations'!$L$55 -> 11.12 | V134: 493.2090667 | W134: 424.1597973 | X134: 49.32090667 | Y134: ='2024 Farm Bill Calculator'!$G$23 -> 48.46333333 | Z134: ='2024 Farm Bill Calculator'!$G$37 -> 11.25 | AA134: 545.2125 | AB134: 0 | AC134: 0
B135: CharlevoixSoybeansAll | C135: 26077 | D135: Michigan | E135: Charlevoix | G135: Soybeans | H135: Bushel | I135: All | J135: 40.8 | K135: 40.8 | L135: 40.8 | M135: 40.8 | N135: 45.8 | O135: 38.34 | P135: 41.308 | Q135: 41.4096 | T135: 40.8 | U135: ='Background Calculations'!$L$55 -> 11.12 | V135: 453.696 | W135: 390.17856 | X135: 45.3696 | Y135: ='2024 Farm Bill Calculator'!$G$23 -> 48.46333333 | Z135: ='2024 Farm Bill Calculator'!$G$37 -> 11.25 | AA135: 545.2125 | AB135: 0 | AC135: 0
B136: CheboyganSoybeansAll | C136: 26077 | D136: Michigan | E136: Cheboygan | G136: Soybeans | H136: Bushel | I136: All | J136: 40.8 | K136: 40.8 | L136: 40.8 | M136: 40.8 | N136: 42 | O136: 38.34 | P136: 40.548 | Q136: 40.4976 | T136: 40.8 | U136: ='Background Calculations'!$L$55 -> 11.12 | V136: 453.696 | W136: 390.17856 | X136: 45.3696 | Y136: ='2024 Farm Bill Calculator'!$G$23 -> 48.46333333 | Z136: ='2024 Farm Bill Calculator'!$G$37 -> 11.25 | AA136: 545.2125 | AB136: 0 | AC136: 0
B137: ChippewaSoybeansAll | C137: 26077 | D137: Michigan | E137: Chippewa | G137: Soybeans | H137: Bushel | I137: All | J137: 37 | K137: 37 | L137: 1131.11 | M137: 40.1 | N137: 33.2 | O137: 18.09 | P137: 251.9 | Q137: 294.88 | T137: 36.76666667 | U137: ='Background Calculations'!$L$55 -> 11.12 | V137: 408.8453333 | W137: 351.6069867 | X137: 40.88453333 | Y137: ='2024 Farm Bill Calculator'!$G$23 -> 48.46333333 | Z137: ='2024 Farm Bill Calculator'!$G$37 -> 11.25 | AA137: 545.2125 | AB137: 0 | AC137: 0
B138: ClareSoybeansAll | C138: 26077 | D138: Michigan | E138: Clare | G138: Soybeans | H138: Bushel | I138: All | J138: 34.13 | K138: 33.95 | L138: 26.43 | M138: 30.79 | N138: 30.01 | O138: 34.41 | P138: 31.118 | Q138: 30.5516 | T138: 31.58333333 | U138: ='Background Calculations'!$L$55 -> 11.12 | V138: 351.2066667 | W138: 302.0377333 | X138: 35.12066667 | Y138: ='2024 Farm Bill Calculator'!$G$23 -> 48.46333333 | Z138: ='2024 Farm Bill Calculator'!$G$37 -> 11.25 | AA138: 545.2125 | AB138: 0 | AC138: 0
B139: ClintonSoybeansIrrigated | C139: 26079 | D139: Michigan | E139: Clinton | G139: Soybeans | H139: Bushel | I139: Irrigated | J139: 53.13 | K139: 49.3 | L139: 48.1 | M139: 49.1 | N139: 59.5 | O139: 67.59 | P139: 55.218 | Q139: 56.4016 | R139: 0.5 | T139: 52.63333333 | U139: ='Background Calculations'!$L$55 -> 11.12 | V139: 585.2826667 | W139: 503.3430933 | X139: 58.52826667 | Y139: ='2024 Farm Bill Calculator'!$G$23 -> 48.46333333 | Z139: ='2024 Farm Bill Calculator'!$G$37 -> 11.25 | AA139: 545.2125 | AB139: 0 | AC139: 0
B140: ClintonSoybeansNonirrigated | C140: 26079 | D140: Michigan | E140: Clinton | G140: Soybeans | H140: Bushel | I140: Nonirrigated | J140: 43.35 | K140: 43.9 | L140: 41.1 | M140: 49.1 | N140: 53.31 | O140: 49.1 | P140: 47.802 | Q140: 48.5824 | R140: 0.5 | T140: 47.36666667 | U140: ='Background Calculations'!$L$55 -> 11.12 | V140: 526.7173333 | W140: 452.9769067 | X140: 52.67173333 | Y140: ='2024 Farm Bill Calculator'!$G$23 -> 48.46333333 | Z140: ='2024 Farm Bill Calculator'!$G$37 -> 11.25 | AA140: 545.2125 | AB140: 0 | AC140: 0
B141: DeltaSoybeansAll | C141: 26079 | D141: Michigan | E141: Delta | G141: Soybeans | H141: Bushel | I141: All | J141: 37 | K141: 37 | L141: 34.4 | M141: 40.1 | N141: 33.2 | O141: 14.56 | P141: 31.852 | Q141: 30.8224 | T141: 34.86666667 | U141: ='Background Calculations'!$L$55 -> 11.12 | V141: 387.7173333 | W141: 333.4369067 | X141: 38.77173333 | Y141: ='2024 Farm Bill Calculator'!$G$23 -> 48.46333333 | Z141: ='2024 Farm Bill Calculator'!$G$37 -> 11.25 | AA141: 545.2125 | AB141: 0 | AC141: 0
B142: EatonSoybeansIrrigated | C142: 26081 | D142: Michigan | E142: Eaton | G142: Soybeans | H142: Bushel | I142: Irrigated | J142: 54.37 | K142: 64.69 | L142: 48.18 | M142: 54.47 | N142: 55.3 | O142: 48.16 | P142: 54.68 | Q142: 52.678 | R142: 0.52 | T142: 52.65 | U142: ='Background Calculations'!$L$55 -> 11.12 | V142: 585.468 | W142: 503.50248 | X142: 58.5468 | Y142: ='2024 Farm Bill Calculator'!$G$23 -> 48.46333333 | Z142: ='2024 Farm Bill Calculator'!$G$37 -> 11.25 | AA142: 545.2125 | AB142: 0 | AC142: 0
B143: EatonSoybeansNonirrigated | C143: 26081 | D143: Michigan | E143: Eaton | G143: Soybeans | H143: Bushel | I143: Nonirrigated | J143: 45.59 | K143: 51.8 | L143: 37.46 | M143: 50.28 | N143: 53.33 | O143: 50.79 | P143: 49.252 | Q143: 48.7424 | R143: 0.52 | T143: 50.95666667 | U143: ='Background Calculations'!$L$55 -> 11.12 | V143: 566.6381333 | W143: 487.3087947 | X143: 56.66381333 | Y143: ='2024 Farm Bill Calculator'!$G$23 -> 48.46333333 | Z143: ='2024 Farm Bill Calculator'!$G$37 -> 11.25 | AA143: 545.2125 | AB143: 0 | AC143: 0
B144: EmmetSoybeansAll | C144: 26081 | D144: Michigan | E144: Emmet | G144: Soybeans | H144: Bushel | I144: All | J144: 40.8 | K144: 40.8 | L144: 40.8 | M144: 40.8 | N144: 40.8 | O144: 38.34 | P144: 40.308 | Q144: 40.2096 | T144: 40.8 | U144: ='Background Calculations'!$L$55 -> 11.12 | V144: 453.696 | W144: 390.17856 | X144: 45.3696 | Y144: ='2024 Farm Bill Calculator'!$G$23 -> 48.46333333 | Z144: ='2024 Farm Bill Calculator'!$G$37 -> 11.25 | AA144: 545.2125 | AB144: 0 | AC144: 0
B145: GeneseeSoybeansAll | C145: 26081 | D145: Michigan | E145: Genesee | G145: Soybeans | H145: Bushel | I145: All | J145: 42.77 | K145: 49.5 | L145: 38.77 | M145: 46.15 | N145: 48.69 | O145: 39.95 | P145: 44.982 | Q145: 44.0784 | R145: 0.37 | T145: 44.93 | U145: ='Background Calculations'!$L$55 -> 11.12 | V145: 499.6216 | W145: 429.674576 | X145: 49.96216 | Y145: ='2024 Farm Bill Calculator'!$G$23 -> 48.46333333 | Z145: ='2024 Farm Bill Calculator'!$G$37 -> 11.25 | AA145: 545.2125 | AB145: 0 | AC145: 0
B146: GladwinSoybeansAll | C146: 26081 | D146: Michigan | E146: Gladwin | G146: Soybeans | H146: Bushel | I146: All | J146: 41.26 | K146: 43.16 | L146: 33.64 | M146: 41.95 | N146: 47.69 | O146: 36.63 | P146: 41.024 | Q146: 40.5968 | R146: 0.41 | T146: 40.58 | U146: ='Background Calculations'!$L$55 -> 11.12 | V146: 451.2496 | W146: 388.074656 | X146: 45.12496 | Y146: ='2024 Farm Bill Calculator'!$G$23 -> 48.46333333 | Z146: ='2024 Farm Bill Calculator'!$G$37 -> 11.25 | AA146: 545.2125 | AB146: 0 | AC146: 0
B147: Grand TraverseSoybeansAll | C147: 26085 | D147: Michigan | E147: Grand Traverse | G147: Soybeans | H147: Bushel | I147: All | J147: 34.87 | K147: 27.75 | L147: 34.4 | M147: 35.9 | N147: 40.92 | O147: 34.79 | P147: 34.752 | Q147: 36.1524 | T147: 35.03 | U147: ='Background Calculations'!$L$55 -> 11.12 | V147: 389.5336 | W147: 334.998896 | X147: 38.95336 | Y147: ='2024 Farm Bill Calculator'!$G$23 -> 48.46333333 | Z147: ='2024 Farm Bill Calculator'!$G$37 -> 11.25 | AA147: 545.2125 | AB147: 0 | AC147: 0
B148: GratiotSoybeansIrrigated | C148: 26085 | D148: Michigan | E148: Gratiot | G148: Soybeans | H148: Bushel | I148: Irrigated | J148: 51.49 | K148: 57.44 | L148: 47.8 | M148: 51.12 | N148: 55 | O148: 54.12 | P148: 53.636 | Q148: 52.8752 | R148: 0.54 | T148: 53.41333333 | U148: ='Background Calculations'!$L$55 -> 11.12 | V148: 593.9562667 | W148: 510.8023893 | X148: 59.39562667 | Y148: ='2024 Farm Bill Calculator'!$G$23 -> 48.46333333 | Z148: ='2024 Farm Bill Calculator'!$G$37 -> 11.25 | AA148: 545.2125 | AB148: 0 | AC148: 0
B149: GratiotSoybeansNonirrigated | C149: 26087 | D149: Michigan | E149: Gratiot | G149: Soybeans | H149: Bushel | I149: Nonirrigated | J149: 45.65 | K149: 55.13 | L149: 41.44 | M149: 52.24 | N149: 51.74 | O149: 50.49 | P149: 50.748 | Q149: 49.8716 | R149: 0.54 | T149: 51.49 | U149: ='Background Calculations'!$L$55 -> 11.12 | V149: 572.5688 | W149: 492.409168 | X149: 57.25688 | Y149: ='2024 Farm Bill Calculator'!$G$23 -> 48.46333333 | Z149: ='2024 Farm Bill Calculator'!$G$37 -> 11.25 | AA149: 545.2125 | AB149: 0 | AC149: 0
B150: HillsdaleSoybeansIrrigated | C150: 26087 | D150: Michigan | E150: Hillsdale | G150: Soybeans | H150: Bushel | I150: Irrigated | J150: 52.32 | K150: 57.19 | L150: 55.35 | M150: 58.71 | N150: 56.63 | O150: 61.1 | P150: 58.196 | Q150: 58.3972 | R150: 0.4 | T150: 57.51 | U150: ='Background Calculations'!$L$55 -> 11.12 | V150: 639.5112 | W150: 549.979632 | X150: 63.95112 | Y150: ='2024 Farm Bill Calculator'!$G$23 -> 48.46333333 | Z150: ='2024 Farm Bill Calculator'!$G$37 -> 11.25 | AA150: 545.2125 | AB150: 4.767132 | AC150: 4.767132
B151: HillsdaleSoybeansNonirrigated | C151: 26087 | D151: Michigan | E151: Hillsdale | G151: Soybeans | H151: Bushel | I151: Nonirrigated | J151: 45.84 | K151: 48.78 | L151: 44.43 | M151: 48.98 | N151: 49.87 | O151: 52.07 | P151: 49.226 | Q151: 49.3152 | R151: 0.4 | T151: 49.21 | U151: ='Background Calculations'!$L$55 -> 11.12 | V151: 547.2152 | W151: 470.605072 | X151: 54.72152 | Y151: ='2024 Farm Bill Calculator'!$G$23 -> 48.46333333 | Z151: ='2024 Farm Bill Calculator'!$G$37 -> 11.25 | AA151: 545.2125 | AB151: 0 | AC151: 0
B152: HuronSoybeansIrrigated | C152: 26089 | D152: Michigan | E152: Huron | G152: Soybeans | H152: Bushel | I152: Irrigated | J152: 50.92 | K152: 59.55 | L152: 46.76 | M152: 61.17 | N152: 55.67 | O152: 58.48 | P152: 56.916 | Q152: 56.3892 | R152: 0.59 | T152: 57.9 | U152: ='Background Calculations'!$L$55 -> 11.12 | V152: 643.848 | W152: 553.70928 | X152: 64.3848 | Y152: ='2024 Farm Bill Calculator'!$G$23 -> 48.46333333 | Z152: ='2024 Farm Bill Calculator'!$G$37 -> 11.25 | AA152: 545.2125 | AB152: 8.49678 | AC152: 8.49678
B153: HuronSoybeansNonirrigated | C153: 26089 | D153: Michigan | E153: Huron | G153: Soybeans | H153: Bushel | I153: Nonirrigated | J153: 57.26 | K153: 49.75 | L153: 47.65 | M153: 52 | N153: 57.55 | O153: 46.54 | P153: 51.288 | Q153: 51.5956 | R153: 0.59 | T153: 49.8 | U153: ='Background Calculations'!$L$55 -> 11.12 | V153: 553.776 | W153: 476.24736 | X153: 55.3776 | Y153: ='2024 Farm Bill Calculator'!$G$23 -> 48.46333333 | Z153: ='2024 Farm Bill Calculator'!$G$37 -> 11.25 | AA153: 545.2125 | AB153: 0 | AC153: 0
B154: InghamSoybeansIrrigated | C154: 26089 | D154: Michigan | E154: Ingham | G154: Soybeans | H154: Bushel | I154: Irrigated | J154: 42.39 | K154: 50.16 | L154: 48.3 | M154: 49.95 | N154: 59.97 | O154: 55.82 | P154: 53.39 | Q154: 54.036 | R154: 0.55 | T154: 51.97666667 | U154: ='Background Calculations'!$L$55 -> 11.12 | V154: 577.9805333 | W154: 497.0632587 | X154: 57.79805333 | Y154: ='2024 Farm Bill Calculator'!$G$23 -> 48.46333333 | Z154: ='2024 Farm Bill Calculator'!$G$37 -> 11.25 | AA154: 545.2125 | AB154: 0 | AC154: 0
B155: InghamSoybeansNonirrigated | C155: 26091 | D155: Michigan | E155: Ingham | G155: Soybeans | H155: Bushel | I155: Nonirrigated | J155: 50.84 | K155: 54.48 | L155: 42 | M155: 50.09 | N155: 50.81 | O155: 44.42 | P155: 48.91 | Q155: 47.796 | R155: 0.55 | T155: 48.44 | U155: ='Background Calculations'!$L$55 -> 11.12 | V155: 538.6528 | W155: 463.241408 | X155: 53.86528 | Y155: ='2024 Farm Bill Calculator'!$G$23 -> 48.46333333 | Z155: ='2024 Farm Bill Calculator'!$G$37 -> 11.25 | AA155: 545.2125 | AB155: 0 | AC155: 0
B156: IoniaSoybeansIrrigated | C156: 26091 | D156: Michigan | E156: Ionia | G156: Soybeans | H156: Bushel | I156: Irrigated | J156: 60.06 | K156: 62.16 | L156: 61.01 | M156: 65.09 | N156: 67.38 | O156: 69.18 | P156: 65.554 | Q156: 66.2328 | R156: 0.59 | T156: 64.87666667 | U156: ='Background Calculations'!$L$55 -> 11.12 | V156: 721.4285333 | W156: 620.4285387 | X156: 72.14285333 | Y156: ='2024 Farm Bill Calculator'!$G$23 -> 48.46333333 | Z156: ='2024 Farm Bill Calculator'!$G$37 -> 11.25 | AA156: 545.2125 | AB156: 75.21603867 | AC156: 72.14285333
B157: IoniaSoybeansNonirrigated | C157: 26091 | D157: Michigan | E157: Ionia | G157: Soybeans | H157: Bushel | I157: Nonirrigated | J157: 47.16 | K157: 56.7 | L157: 48.44 | M157: 48.2 | N157: 60.74 | O157: 55.06 | P157: 54.418 | Q157: 53.9616 | R157: 0.59 | T157: 53.4 | U157: ='Background Calculations'!$L$55 -> 11.12 | V157: 593.808 | W157: 510.67488 | X157: 59.3808 | Y157: ='2024 Farm Bill Calculator'!$G$23 -> 48.46333333 | Z157: ='2024 Farm Bill Calculator'!$G$37 -> 11.25 | AA157: 545.2125 | AB157: 0 | AC157: 0
B158: IoscoSoybeansAll | C158: 26091 | D158: Michigan | E158: Iosco | G158: Soybeans | H158: Bushel | I158: All | J158: 38.94 | K158: 47.72 | L158: 32.72 | M158: 33.01 | N158: 41.25 | O158: 37.17 | P158: 38.804 | Q158: 37.0208 | R158: 0.43 | T158: 37.14333333 | U158: ='Background Calculations'!$L$55 -> 11.12 | V158: 413.0338667 | W158: 355.2091253 | X158: 41.30338667 | Y158: ='2024 Farm Bill Calculator'!$G$23 -> 48.46333333 | Z158: ='2024 Farm Bill Calculator'!$G$37 -> 11.25 | AA158: 545.2125 | AB158: 0 | AC158: 0
B159: IsabellaSoybeansIrrigated | C159: 26091 | D159: Michigan | E159: Isabella | G159: Soybeans | H159: Bushel | I159: Irrigated | J159: 48.11 | K159: 50.27 | L159: 44.28 | M159: 52.33 | N159: 54.96 | O159: 45.88 | P159: 50.064 | Q159: 50.0228 | R159: 0.52 | T159: 49.49333333 | U159: ='Background Calculations'!$L$55 -> 11.12 | V159: 550.3658667 | W159: 473.3146453 | X159: 55.03658667 | Y159: ='2024 Farm Bill Calculator'!$G$23 -> 48.46333333 | Z159: ='2024 Farm Bill Calculator'!$G$37 -> 11.25 | AA159: 545.2125 | AB159: 0 | AC159: 0
B160: IsabellaSoybeansNonirrigated | C160: 26093 | D160: Michigan | E160: Isabella | G160: Soybeans | H160: Bushel | I160: Nonirrigated | J160: 41.99 | K160: 43.24 | L160: 36.76 | M160: 39.52 | N160: 48.26 | O160: 46.5 | P160: 43.376 | Q160: 43.4032 | R160: 0.52 | T160: 43.08666667 | U160: ='Background Calculations'!$L$55 -> 11.12 | V160: 479.1237333 | W160: 412.0464107 | X160: 47.91237333 | Y160: ='2024 Farm Bill Calculator'!$G$23 -> 48.46333333 | Z160: ='2024 Farm Bill Calculator'!$G$37 -> 11.25 | AA160: 545.2125 | AB160: 0 | AC160: 0
B161: JacksonSoybeansIrrigated | C161: 26093 | D161: Michigan | E161: Jackson | G161: Soybeans | H161: Bushel | I161: Irrigated | J161: 59.69 | K161: 58.05 | L161: 59.29 | M161: 55.37 | N161: 58.28 | O161: 58.47 | P161: 58.272 | Q161: 58.3164 | R161: 0.38 | T161: 58.26666667 | U161: ='Background Calculations'!$L$55 -> 11.12 | V161: 647.9253333 | W161: 557.2157867 | X161: 64.79253333 | Y161: ='2024 Farm Bill Calculator'!$G$23 -> 48.46333333 | Z161: ='2024 Farm Bill Calculator'!$G$37 -> 11.25 | AA161: 545.2125 | AB161: 12.00328667 | AC161: 12.00328667
B162: JacksonSoybeansNonirrigated | C162: 26093 | D162: Michigan | E162: Jackson | G162: Soybeans | H162: Bushel | I162: Nonirrigated | J162: 35.21 | K162: 43.35 | L162: 44.01 | M162: 40.13 | N162: 48.63 | O162: 46.78 | P162: 44.96 | Q162: 45.282 | R162: 0.38 | T162: 44.71333333 | U162: ='Background Calculations'!$L$55 -> 11.12 | V162: 497.2122667 | W162: 427.6025493 | X162: 49.72122667 | Y162: ='2024 Farm Bill Calculator'!$G$23 -> 48.46333333 | Z162: ='2024 Farm Bill Calculator'!$G$37 -> 11.25 | AA162: 545.2125 | AB162: 0 | AC162: 0
B163: KalamazooSoybeansIrrigated | C163: 26095 | D163: Michigan | E163: Kalamazoo | G163: Soybeans | H163: Bushel | I163: Irrigated | J163: 57.7 | K163: 69.23 | L163: 59.37 | M163: 67.17 | N163: 65.54 | O163: 66.9 | P163: 66.202 | Q163: 65.5964 | R163: 0.56 | T163: 66.53666667 | U163: ='Background Calculations'!$L$55 -> 11.12 | V163: 739.8877333 | W163: 636.3034507 | X163: 73.98877333 | Y163: ='2024 Farm Bill Calculator'!$G$23 -> 48.46333333 | Z163: ='2024 Farm Bill Calculator'!$G$37 -> 11.25 | AA163: 545.2125 | AB163: 91.09095067 | AC163: 73.98877333
B164: KalamazooSoybeansNonirrigated | C164: 26095 | D164: Michigan | E164: Kalamazoo | G164: Soybeans | H164: Bushel | I164: Nonirrigated | J164: 39.31 | K164: 48.22 | L164: 42.81 | M164: 38.48 | N164: 50.49 | O164: 47.42 | P164: 46.004 | Q164: 45.5608 | R164: 0.52 | T164: 46.15 | U164: ='Background Calculations'!$L$55 -> 11.12 | V164: 513.188 | W164: 441.34168 | X164: 51.3188 | Y164: ='2024 Farm Bill Calculator'!$G$23 -> 48.46333333 | Z164: ='2024 Farm Bill Calculator'!$G$37 -> 11.25 | AA164: 545.2125 | AB164: 0 | AC164: 0
B165: KalkaskaSoybeansAll | C165: 26095 | D165: Michigan | E165: Kalkaska | G165: Soybeans | H165: Bushel | I165: All | J165: 37 | K165: 37 | L165: 34.4 | M165: 35.2 | N165: 43.36 | O165: 38.34 | P165: 37.66 | Q165: 37.792 | T165: 36.84666667 | U165: ='Background Calculations'!$L$55 -> 11.12 | V165: 409.7349333 | W165: 352.3720427 | X165: 40.97349333 | Y165: ='2024 Farm Bill Calculator'!$G$23 -> 48.46333333 | Z165: ='2024 Farm Bill Calculator'!$G$37 -> 11.25 | AA165: 545.2125 | AB165: 0 | AC165: 0
B166: KentSoybeansIrrigated | C166: 26097 | D166: Michigan | E166: Kent | G166: Soybeans | H166: Bushel | I166: Irrigated | J166: 48.54 | K166: 66.62 | L166: 47.56 | M166: 60.15 | N166: 60.38 | O166: 65.5 | P166: 60.632 | Q166: 59.4344 | R166: 0.59 | T166: 62.01 | U166: ='Background Calculations'!$L$55 -> 11.12 | V166: 689.5512 | W166: 593.014032 | X166: 68.95512 | Y166: ='2024 Farm Bill Calculator'!$G$23 -> 48.46333333 | Z166: ='2024 Farm Bill Calculator'!$G$37 -> 11.25 | AA166: 545.2125 | AB166: 47.801532 | AC166: 47.801532
B167: KentSoybeansNonirrigated | C167: 26097 | D167: Michigan | E167: Kent | G167: Soybeans | H167: Bushel | I167: Nonirrigated | J167: 43.61 | K167: 46.72 | L167: 45.26 | M167: 47.67 | N167: 53.19 | O167: 50.31 | P167: 49.22 | Q167: 49.72 | R167: 0.59 | T167: 48.23333333 | U167: ='Background Calculations'!$L$55 -> 11.12 | V167: 536.3546667 | W167: 461.2650133 | X167: 53.63546667 | Y167: ='2024 Farm Bill Calculator'!$G$23 -> 48.46333333 | Z167: ='2024 Farm Bill Calculator'!$G$37 -> 11.25 | AA167: 545.2125 | AB167: 0 | AC167: 0
B168: LapeerSoybeansAll | C168: 26097 | D168: Michigan | E168: Lapeer | G168: Soybeans | H168: Bushel | I168: All | J168: 42.7 | K168: 47.67 | L168: 36.1 | M168: 49.78 | N168: 47.82 | O168: 40 | P168: 44.734 | Q168: 44.1468 | R168: 0.46 | T168: 45.16333333 | U168: ='Background Calculations'!$L$55 -> 11.12 | V168: 502.2162667 | W168: 431.9059893 | X168: 50.22162667 | Y168: ='2024 Farm Bill Calculator'!$G$23 -> 48.46333333 | Z168: ='2024 Farm Bill Calculator'!$G$37 -> 11.25 | AA168: 545.2125 | AB168: 0 | AC168: 0
B169: LeelanauSoybeansAll | C169: 26099 | D169: Michigan | E169: Leelanau | G169: Soybeans | H169: Bushel | I169: All | J169: 45.13 | K169: 40.8 | L169: 40.8 | M169: 40.8 | N169: 40.92 | O169: 38.34 | P169: 40.332 | Q169: 40.2384 | T169: 40.8 | U169: ='Background Calculations'!$L$55 -> 11.12 | V169: 453.696 | W169: 390.17856 | X169: 45.3696 | Y169: ='2024 Farm Bill Calculator'!$G$23 -> 48.46333333 | Z169: ='2024 Farm Bill Calculator'!$G$37 -> 11.25 | AA169: 545.2125 | AB169: 0 | AC169: 0
B170: LenaweeSoybeansIrrigated | C170: 26099 | D170: Michigan | E170: Lenawee | G170: Soybeans | H170: Bushel | I170: Irrigated | J170: 58.12 | K170: 62 | L170: 68.55 | M170: 73.02 | N170: 66.17 | O170: 71.7 | P170: 68.828 | Q170: 70.1936 | R170: 0.54 | T170: 68.80666667 | U170: ='Background Calculations'!$L$55 -> 11.12 | V170: 765.1301333 | W170: 658.0119147 | X170: 76.51301333 | Y170: ='2024 Farm Bill Calculator'!$G$23 -> 48.46333333 | Z170: ='2024 Farm Bill Calculator'!$G$37 -> 11.25 | AA170: 545.2125 | AB170: 112.7994147 | AC170: 76.51301333
B171: LenaweeSoybeansNonirrigated | C171: 26099 | D171: Michigan | E171: Lenawee | G171: Soybeans | H171: Bushel | I171: Nonirrigated | J171: 51.91 | K171: 54.22 | L171: 51.92 | M171: 50.31 | N171: 54.68 | O171: 52.24 | P171: 53.214 | Q171: 53.0128 | R171: 0.54 | T171: 52.79333333 | U171: ='Background Calculations'!$L$55 -> 11.12 | V171: 587.0618667 | W171: 504.8732053 | X171: 58.70618667 | Y171: ='2024 Farm Bill Calculator'!$G$23 -> 48.46333333 | Z171: ='2024 Farm Bill Calculator'!$G$37 -> 11.25 | AA171: 545.2125 | AB171: 0 | AC171: 0
B172: LivingstonSoybeansAll | C172: 26101 | D172: Michigan | E172: Livingston | G172: Soybeans | H172: Bushel | I172: All | J172: 41.61 | K172: 48.33 | L172: 47.13 | M172: 47.05 | N172: 51.01 | O172: 46.63 | P172: 48.52 | Q172: 48.558 | R172: 0.49 | T172: 47.50333333 | U172: ='Background Calculations'!$L$55 -> 11.12 | V172: 528.2370667 | W172: 454.2838773 | X172: 52.82370667 | Y172: ='2024 Farm Bill Calculator'!$G$23 -> 48.46333333 | Z172: ='2024 Farm Bill Calculator'!$G$37 -> 11.25 | AA172: 545.2125 | AB172: 0 | AC172: 0
B173: LuceSoybeansAll | C173: 26101 | D173: Michigan | E173: Luce | G173: Soybeans | H173: Bushel | I173: All | J173: 37 | K173: 37 | L173: 34.4 | M173: 40.1 | N173: 33.2 | O173: 18.09 | P173: 32.558 | Q173: 31.6696 | T173: 34.86666667 | U173: ='Background Calculations'!$L$55 -> 11.12 | V173: 387.7173333 | W173: 333.4369067 | X173: 38.77173333 | Y173: ='2024 Farm Bill Calculator'!$G$23 -> 48.46333333 | Z173: ='2024 Farm Bill Calculator'!$G$37 -> 11.25 | AA173: 545.2125 | AB173: 0 | AC173: 0
B174: MackinacSoybeansAll | C174: 26101 | D174: Michigan | E174: Mackinac | G174: Soybeans | H174: Bushel | I174: All | J174: 37 | K174: 37 | L174: 34.4 | M174: 40.1 | N174: 33.2 | O174: 18.09 | P174: 32.558 | Q174: 31.6696 | T174: 34.86666667 | U174: ='Background Calculations'!$L$55 -> 11.12 | V174: 387.7173333 | W174: 333.4369067 | X174: 38.77173333 | Y174: ='2024 Farm Bill Calculator'!$G$23 -> 48.46333333 | Z174: ='2024 Farm Bill Calculator'!$G$37 -> 11.25 | AA174: 545.2125 | AB174: 0 | AC174: 0
B175: MacombSoybeansAll | C175: 26103 | D175: Michigan | E175: Macomb | G175: Soybeans | H175: Bushel | I175: All | J175: 43.96 | K175: 47.56 | L175: 37.51 | M175: 42.2 | N175: 41.52 | O175: 36.24 | P175: 41.436 | Q175: 40.2112 | R175: 0.43 | T175: 40.41 | U175: ='Background Calculations'!$L$55 -> 11.12 | V175: 449.3592 | W175: 386.448912 | X175: 44.93592 | Y175: ='2024 Farm Bill Calculator'!$G$23 -> 48.46333333 | Z175: ='2024 Farm Bill Calculator'!$G$37 -> 11.25 | AA175: 545.2125 | AB175: 0 | AC175: 0
B176: ManisteeSoybeansAll | C176: 26103 | D176: Michigan | E176: Manistee | G176: Soybeans | H176: Bushel | I176: All | J176: 37 | K176: 36.7 | L176: 34.4 | M176: 37.6 | N176: 48.45 | O176: 38.34 | P176: 39.098 | Q176: 39.5776 | T176: 37.54666667 | U176: ='Background Calculations'!$L$55 -> 11.12 | V176: 417.5189333 | W176: 359.0662827 | X176: 41.75189333 | Y176: ='2024 Farm Bill Calculator'!$G$23 -> 48.46333333 | Z176: ='2024 Farm Bill Calculator'!$G$37 -> 11.25 | AA176: 545.2125 | AB176: 0 | AC176: 0
B177: MasonSoybeansAll | C177: 26105 | D177: Michigan | E177: Mason | G177: Soybeans | H177: Bushel | I177: All | J177: 49.45 | K177: 47.56 | L177: 43.21 | M177: 48.7 | N177: 56.99 | O177: 44.27 | P177: 48.656 | Q177: 48.8752 | R177: 0.51 | T177: 46.84333333 | U177: ='Background Calculations'!$L$55 -> 11.12 | V177: 520.8978667 | W177: 447.9721653 | X177: 52.08978667 | Y177: ='2024 Farm Bill Calculator'!$G$23 -> 48.46333333 | Z177: ='2024 Farm Bill Calculator'!$G$37 -> 11.25 | AA177: 545.2125 | AB177: 0 | AC177: 0
B178: MecostaSoybeansIrrigated | C178: 26105 | D178: Michigan | E178: Mecosta | G178: Soybeans | H178: Bushel | I178: Irrigated | J178: 55.54 | K178: 54.02 | L178: 34.4 | M178: 56.39 | N178: 59.08 | O178: 55.02 | P178: 51.782 | Q178: 51.3344 | T178: 55.14333333 | U178: ='Background Calculations'!$L$55 -> 11.12 | V178: 613.1938667 | W178: 527.3467253 | X178: 61.31938667 | Y178: ='2024 Farm Bill Calculator'!$G$23 -> 48.46333333 | Z178: ='2024 Farm Bill Calculator'!$G$37 -> 11.25 | AA178: 545.2125 | AB178: 0 | AC178: 0
B179: MecostaSoybeansNonirrigated | C179: 26105 | D179: Michigan | E179: Mecosta | G179: Soybeans | H179: Bushel | I179: Nonirrigated | J179: 33.32 | K179: 26.47 | L179: 23.2 | M179: 30.08 | N179: 36.42 | O179: 27.81 | P179: 28.796 | Q179: 29.2612 | T179: 28.12 | U179: ='Background Calculations'!$L$55 -> 11.12 | V179: 312.6944 | W179: 268.917184 | X179: 31.26944 | Y179: ='2024 Farm Bill Calculator'!$G$23 -> 48.46333333 | Z179: ='2024 Farm Bill Calculator'!$G$37 -> 11.25 | AA179: 545.2125 | AB179: 0 | AC179: 0
B180: MenomineeSoybeansAll | C180: 26105 | D180: Michigan | E180: Menominee | G180: Soybeans | H180: Bushel | I180: All | J180: 24.18 | K180: 37.72 | L180: 17.6 | M180: 38.25 | N180: 33.2 | O180: 21.61 | P180: 29.676 | Q180: 28.0672 | T180: 30.84333333 | U180: ='Background Calculations'!$L$55 -> 11.12 | V180: 342.9778667 | W180: 294.9609653 | X180: 34.29778667 | Y180: ='2024 Farm Bill Calculator'!$G$23 -> 48.46333333 | Z180: ='2024 Farm Bill Calculator'!$G$37 -> 11.25 | AA180: 545.2125 | AB180: 0 | AC180: 0
B181: MidlandSoybeansAll | C181: 26107 | D181: Michigan | E181: Midland | G181: Soybeans | H181: Bushel | I181: All | J181: 43.05 | K181: 47.48 | L181: 39.68 | M181: 45.1 | N181: 49.45 | O181: 46.53 | P181: 46.158 | Q181: 45.8936 | R181: 0.51 | T181: 46.37 | U181: ='Background Calculations'!$L$55 -> 11.12 | V181: 515.6344 | W181: 443.445584 | X181: 51.56344 | Y181: ='2024 Farm Bill Calculator'!$G$23 -> 48.46333333 | Z181: ='2024 Farm Bill Calculator'!$G$37 -> 11.25 | AA181: 545.2125 | AB181: 0 | AC181: 0
B182: MissaukeeSoybeansAll | C182: 26107 | D182: Michigan | E182: Missaukee | G182: Soybeans | H182: Bushel | I182: All | J182: 37 | K182: 37 | L182: 34.4 | M182: 35.4 | N182: 35.47 | O182: 38.34 | P182: 36.122 | Q182: 35.9464 | T182: 35.95666667 | U182: ='Background Calculations'!$L$55 -> 11.12 | V182: 399.8381333 | W182: 343.8607947 | X182: 39.98381333 | Y182: ='2024 Farm Bill Calculator'!$G$23 -> 48.46333333 | Z182: ='2024 Farm Bill Calculator'!$G$37 -> 11.25 | AA182: =Z182*Y182 -> 545.2125 | AB182: =IF(W182-AA182>0,W182-AA182,0) -> 0 | AC182: =MIN(AB182,X182) -> 0
B183: MonroeSoybeansAll | C183: 26107 | D183: Michigan | E183: Monroe | G183: Soybeans | H183: Bushel | I183: All | J183: 52.41 | K183: 49.28 | L183: 50.97 | M183: 44.51 | N183: 53.6 | O183: 43.57 | P183: 48.886 | Q183: 48.8072 | R183: 0.5 | T183: 48.25333333 | U183: ='Background Calculations'!$L$55 -> 11.12 | V183: 536.5770667 | W183: 461.4562773 | X183: 53.65770667 | Y183: ='2024 Farm Bill Calculator'!$G$23 -> 48.46333333 | Z183: ='2024 Farm Bill Calculator'!$G$37 -> 11.25 | AA183: 545.2125 | AB183: 0 | AC183: 0
B184: MontcalmSoybeansIrrigated | C184: 26107 | D184: Michigan | E184: Montcalm | G184: Soybeans | H184: Bushel | I184: Irrigated | J184: 52.47 | K184: 56.13 | L184: 52.84 | M184: 56.87 | N184: 60.27 | O184: 57.46 | P184: 57.104 | Q184: 57.2988 | R184: 0.39 | T184: 56.82 | U184: ='Background Calculations'!$L$55 -> 11.12 | V184: 631.8384 | W184: 543.381024 | X184: 63.18384 | Y184: ='2024 Farm Bill Calculator'!$G$23 -> 48.46333333 | Z184: ='2024 Farm Bill Calculator'!$G$37 -> 11.25 | AA184: 545.2125 | AB184: 0 | AC184: 0
B185: MontcalmSoybeansNonirrigated | C185: 26107 | D185: Michigan | E185: Montcalm | G185: Soybeans | H185: Bushel | I185: Nonirrigated | J185: 35.6 | K185: 42.09 | L185: 36.85 | M185: 45.18 | N185: 47.5 | O185: 43.91 | P185: 43.486 | Q185: 43.7652 | R185: 0.38 | T185: 43.72666667 | U185: ='Background Calculations'!$L$55 -> 11.12 | V185: 486.2405333 | W185: 418.1668587 | X185: 48.62405333 | Y185: ='2024 Farm Bill Calculator'!$G$23 -> 48.46333333 | Z185: ='2024 Farm Bill Calculator'!$G$37 -> 11.25 | AA185: 545.2125 | AB185: 0 | AC185: 0
B186: MontmorencySoybeansAll | C186: 26109 | D186: Michigan | E186: Montmorency | G186: Soybeans | H186: Bushel | I186: All | J186: 41.79 | K186: 37 | L186: 30.57 | M186: 44.9 | N186: 48.29 | O186: 39.71 | P186: 40.094 | Q186: 40.7128 | T186: 40.53666667 | U186: ='Background Calculations'!$L$55 -> 11.12 | V186: 450.7677333 | W186: 387.6602507 | X186: 45.07677333 | Y186: ='2024 Farm Bill Calculator'!$G$23 -> 48.46333333 | Z186: ='2024 Farm Bill Calculator'!$G$37 -> 11.25 | AA186: 545.2125 | AB186: 0 | AC186: 0
B187: MuskegonSoybeansAll | C187: 26109 | D187: Michigan | E187: Muskegon | G187: Soybeans | H187: Bushel | I187: All | J187: 48.71 | K187: 47.4 | L187: 30.24 | M187: 41.67 | N187: 53.65 | O187: 52.49 | P187: 45.58 | Q187: 45.216 | R187: 0.49 | T187: 47.18666667 | U187: ='Background Calculations'!$L$55 -> 11.12 | V187: 524.7157333 | W187: 451.2555307 | X187: 52.47157333 | Y187: ='2024 Farm Bill Calculator'!$G$23 -> 48.46333333 | Z187: ='2024 Farm Bill Calculator'!$G$37 -> 11.25 | AA187: 545.2125 | AB187: 0 | AC187: 0
B188: NewaygoSoybeansAll | C188: 26109 | D188: Michigan | E188: Newaygo | G188: Soybeans | H188: Bushel | I188: All | J188: 36.19 | K188: 35.37 | L188: 42.44 | M188: 40.82 | N188: 52.83 | O188: 52.09 | P188: 45.17 | Q188: 47.13 | R188: 0.46 | T188: 45.11666667 | U188: ='Background Calculations'!$L$55 -> 11.12 | V188: 501.6973333 | W188: 431.4597067 | X188: 50.16973333 | Y188: ='2024 Farm Bill Calculator'!$G$23 -> 48.46333333 | Z188: ='2024 Farm Bill Calculator'!$G$37 -> 11.25 | AA188: 545.2125 | AB188: 0 | AC188: 0
B189: OaklandSoybeansAll | C189: 26111 | D189: Michigan | E189: Oakland | G189: Soybeans | H189: Bushel | I189: All | J189: 34.37 | K189: 32.17 | L189: 32.49 | M189: 34.19 | N189: 40.51 | O189: 21.83 | P189: 32.598 | Q189: 32.6836 | R189: 0.36 | T189: 32.95 | U189: ='Background Calculations'!$L$55 -> 11.12 | V189: 366.404 | W189: 315.10744 | X189: 36.6404 | Y189: ='2024 Farm Bill Calculator'!$G$23 -> 48.46333333 | Z189: ='2024 Farm Bill Calculator'!$G$37 -> 11.25 | AA189: 545.2125 | AB189: 0 | AC189: 0
B190: OceanaSoybeansIrrigated | C190: 26111 | D190: Michigan | E190: Oceana | G190: Soybeans | H190: Bushel | I190: Irrigated | J190: 48.46 | K190: 36.37 | L190: 41.94 | M190: 54.13 | N190: 48.58 | O190: 47.38 | P190: 46.09 | Q190: 48.034 | R190: 0.41 | T190: 45.96666667 | U190: ='Background Calculations'!$L$55 -> 11.12 | V190: 511.1493333 | W190: 439.5884267 | X190: 51.11493333 | Y190: ='2024 Farm Bill Calculator'!$G$23 -> 48.46333333 | Z190: ='2024 Farm Bill Calculator'!$G$37 -> 11.25 | AA190: 545.2125 | AB190: 0 | AC190: 0
B191: OceanaSoybeansNonirrigated | C191: 26111 | D191: Michigan | E191: Oceana | G191: Soybeans | H191: Bushel | I191: Nonirrigated | J191: 40.55 | K191: 33.48 | L191: 28.8 | M191: 39.1 | N191: 44 | O191: 38.5 | P191: 37.176 | Q191: 37.9152 | R191: 0.4 | T191: 37.02666667 | U191: ='Background Calculations'!$L$55 -> 11.12 | V191: 411.7365333 | W191: 354.0934187 | X191: 41.17365333 | Y191: ='2024 Farm Bill Calculator'!$G$23 -> 48.46333333 | Z191: ='2024 Farm Bill Calculator'!$G$37 -> 11.25 | AA191: 545.2125 | AB191: 0 | AC191: 0
B192: OgemawSoybeansAll | C192: 26111 | D192: Michigan | E192: Ogemaw | G192: Soybeans | H192: Bushel | I192: All | J192: 43.66 | K192: 40.06 | L192: 35 | M192: 33.25 | N192: 46.87 | O192: 38.96 | P192: 38.828 | Q192: 38.5816 | T192: 38.00666667 | U192: ='Background Calculations'!$L$55 -> 11.12 | V192: 422.6341333 | W192: 363.4653547 | X192: 42.26341333 | Y192: ='2024 Farm Bill Calculator'!$G$23 -> 48.46333333 | Z192: ='2024 Farm Bill Calculator'!$G$37 -> 11.25 | AA192: 545.2125 | AB192: 0 | AC192: 0
B193: OsceolaSoybeansAll | C193: 26113 | D193: Michigan | E193: Osceola | G193: Soybeans | H193: Bushel | I193: All | J193: 33.47 | K193: 29.81 | L193: 24 | M193: 32.92 | N193: 42.86 | O193: 27.56 | P193: 31.43 | Q193: 31.754 | T193: 30.09666667 | U193: ='Background Calculations'!$L$55 -> 11.12 | V193: 334.6749333 | W193: 287.8204427 | X193: 33.46749333 | Y193: ='2024 Farm Bill Calculator'!$G$23 -> 48.46333333 | Z193: ='2024 Farm Bill Calculator'!$G$37 -> 11.25 | AA193: 545.2125 | AB193: 0 | AC193: 0
B194: OtsegoSoybeansAll | C194: 26113 | D194: Michigan | E194: Otsego | G194: Soybeans | H194: Bushel | I194: All | J194: 27.5 | K194: 37 | L194: 33.02 | M194: 44.9 | N194: 45.8 | O194: 38.34 | P194: 39.812 | Q194: 40.3744 | T194: 40.08 | U194: ='Background Calculations'!$L$55 -> 11.12 | V194: 445.6896 | W194: 383.293056 | X194: 44.56896 | Y194: ='2024 Farm Bill Calculator'!$G$23 -> 48.46333333 | Z194: ='2024 Farm Bill Calculator'!$G$37 -> 11.25 | AA194: 545.2125 | AB194: 0 | AC194: 0
B195: OttawaSoybeansIrrigated | C195: 26113 | D195: Michigan | E195: Ottawa | G195: Soybeans | H195: Bushel | I195: Irrigated | J195: 53.6 | K195: 50.82 | L195: 55.91 | M195: 46.4 | N195: 56.33 | O195: 58.3 | P195: 54.132 | Q195: 54.7944 | R195: 0.58 | T195: 54.35333333 | U195: ='Background Calculations'!$L$55 -> 11.12 | V195: 604.4090667 | W195: 519.7917973 | X195: 60.44090667 | Y195: ='2024 Farm Bill Calculator'!$G$23 -> 48.46333333 | Z195: ='2024 Farm Bill Calculator'!$G$37 -> 11.25 | AA195: 545.2125 | AB195: 0 | AC195: 0
B196: OttawaSoybeansNonirrigated | C196: 26113 | D196: Michigan | E196: Ottawa | G196: Soybeans | H196: Bushel | I196: Nonirrigated | J196: 49.66 | K196: 46.23 | L196: 43.48 | M196: 45.65 | N196: 51.14 | O196: 54.49 | P196: 48.778 | Q196: 49.2876 | R196: 0.58 | T196: 47.67333333 | U196: ='Background Calculations'!$L$55 -> 11.12 | V196: 530.1274667 | W196: 455.9096213 | X196: 53.01274667 | Y196: ='2024 Farm Bill Calculator'!$G$23 -> 48.46333333 | Z196: ='2024 Farm Bill Calculator'!$G$37 -> 11.25 | AA196: 545.2125 | AB196: 0 | AC196: 0
B197: =E197&G197&I197 -> Presque IsleSoybeansAll | C197: 26115 | D197: Michigan | E197: Presque Isle | G197: Soybeans | H197: Bushel | I197: All | J197: 37 | K197: 20.8 | L197: 20.8 | M197: 43.92 | N197: 31.92 | O197: 24.33 | P197: =AVERAGE(K197:O197)+R197 -> 28.354 | Q197: =AVERAGE(L197:P197)+R197 -> 29.8648 | T197: =(SUM(K197:O197)-MIN(K197:O197)-MAX(K197:O197))/(COUNT(K197:O197)-2) -> 25.68333333 | U197: ='Background Calculations'!$L$55 -> 11.12 | V197: =T197*U197 -> 285.5986667 | W197: =V197*0.86 -> 245.6148533 | X197: =V197*0.1 -> 28.55986667 | Y197: ='2024 Farm Bill Calculator'!$G$23 -> 48.46333333 | Z197: ='2024 Farm Bill Calculator'!$G$37 -> 11.25 | AA197: 545.2125 | AB197: 0 | AC197: 0
B198: SaginawSoybeansIrrigated | C198: 26115 | D198: Michigan | E198: Saginaw | G198: Soybeans | H198: Bushel | I198: Irrigated | J198: 57.01 | K198: 68.36 | L198: 44.04 | M198: 63.28 | N198: 58.07 | O198: 63.06 | P198: 59.872 | Q198: 58.1744 | R198: 0.51 | T198: 61.47 | U198: ='Background Calculations'!$L$55 -> 11.12 | V198: 683.5464 | W198: 587.849904 | X198: 68.35464 | Y198: ='2024 Farm Bill Calculator'!$G$23 -> 48.46333333 | Z198: ='2024 Farm Bill Calculator'!$G$37 -> 11.25 | AA198: 545.2125 | AB198: 42.637404 | AC198: 42.637404
B199: SaginawSoybeansNonirrigated | C199: 26115 | D199: Michigan | E199: Saginaw | G199: Soybeans | H199: Bushel | I199: Nonirrigated | J199: 47.49 | K199: 55.63 | L199: 41.86 | M199: 51.61 | N199: 50.56 | O199: 50.19 | P199: 50.48 | Q199: 49.45 | R199: 0.51 | T199: 50.78666667 | U199: ='Background Calculations'!$L$55 -> 11.12 | V199: 564.7477333 | W199: 485.6830507 | X199: 56.47477333 | Y199: ='2024 Farm Bill Calculator'!$G$23 -> 48.46333333 | Z199: ='2024 Farm Bill Calculator'!$G$37 -> 11.25 | AA199: 545.2125 | AB199: 0 | AC199: 0
B200: SanilacSoybeansAll | C200: 26115 | D200: Michigan | E200: Sanilac | G200: Soybeans | H200: Bushel | I200: All | J200: 50.31 | K200: 56.35 | L200: 42.27 | M200: 56.34 | N200: 55.36 | O200: 48.37 | P200: 52.248 | Q200: 51.4276 | R200: 0.51 | T200: 53.35666667 | U200: ='Background Calculations'!$L$55 -> 11.12 | V200: 593.3261333 | W200: 510.2604747 | X200: 59.33261333 | Y200: ='2024 Farm Bill Calculator'!$G$23 -> 48.46333333 | Z200: ='2024 Farm Bill Calculator'!$G$37 -> 11.25 | AA200: 545.2125 | AB200: 0 | AC200: 0
... 89 more rows

Sheet SCO Coverage (hidden)
B1: 0
B2: 85-86%
B3: 80-86%
B4: 75-86%
B5: 70-86%
B6: 65-86%
B7: 60-86%
B8: 55-86%
B9: 50-86%

Sheet County List (hidden)
C2: Alcona
C3: Alger
C4: Allegan
C5: Alpena
C6: Antrim
C7: Arenac
C8: Baraga
C9: Barry
C10: Bay
C11: Benzie
C12: Berrien
C13: Branch
C14: Calhoun
C15: Cass
C16: Charlevoix
C17: Cheboygan
C18: Chippewa
C19: Clare
C20: Clinton
C21: Delta
C22: Dickinson
C23: Eaton
C24: Emmet
C25: Genesee
C26: Gladwin
C27: Grand Traverse
C28: Gratiot
C29: Hillsdale
C30: Houghton
C31: Huron
C32: Ingham
C33: Ionia
C34: Iosco
C35: Iron
C36: Isabella
C37: Jackson
C38: Kalamazoo
C39: Kalkaska
C40: Kent
C41: Lake
C42: Lapeer
C43: Leelanau
C44: Lenawee
C45: Livingston
C46: Luce
C47: Mackinac
C48: Macomb
C49: Manistee
C50: Marquette
C51: Mason
C52: Mecosta
C53: Menominee
C54: Midland
C55: Missaukee
C56: Monroe
C57: Montcalm
C58: Montmorency
C59: Muskegon
C60: Newaygo
C61: Oakland
C62: Oceana
C63: Ogemaw
C64: Ontonagon
C65: Osceola
C66: Oscoda
C67: Otsego
C68: Ottawa
C69: Presque Isle
C70: Roscommon
C71: Saginaw
C72: Sanilac
C73: Schoolcraft
C74: Shiawassee
C75: St. Clair
C76: St. Joseph
C77: Tuscola
C78: Van Buren
C79: Washtenaw
C80: Wayne
C81: Wexford
